Workbook

Sheet Examples (hidden)
A1: IPART COLOUR CODES FOR MODELS AND INFORMATION REQUESTS
B2: NB ALWAYS DESCRIBE THE COLOUR CODE USED IN YOUR MODEL
B3: Note: If you use the formats for the inputs provided in this template, input cells will always be unprotected even when you protect the worksheet
H4: use this column cell to "paint" input cells for numbers (NOT for percentages)
I5: use this column cell to "paint" input cells for percentages (NOT numbers)
B6: Models
B7: Option 1 (best for models that will be used repeatedly) | G7: =G22 -> numbers | H7: =H22 -> % | I7: Option 2 (best for smaller models for once-off and/or own use)
B8: Inputs | G8: 4442 | H8: 0.08 | I8: Inputs | J8: 67 | K8: 0.03
B9: Links from other files (green) | I9: =B9 -> Links from other files (green)
B10: Error check (check =0) | I10: Error check (check =0)
B11: Error warnings, messages and unusual calculation assumptions | I11: =B11 -> Error warnings, messages and unusual calculation assumptions
B12: Indicate change in formula across row with a double red line | I12: ..change in formula across row with a double red line
B13: Key outputs | I13: =B13 -> Key outputs
B14: Note: can combine options, eg:
B15: Example 1 | D15: Inputs for model runs | F15: AND
C16: Hard-coded protected inputs that can't be changed (eg credit ratio and ratings tables)
B18: Example 2 | D18: Inputs can be links to other files in some runs
D19: Attention can be drawn to different/unusual inputs
H20: use this column cell to "paint" input cells for numbers (NOT for percentages)
B21: Information Requests | I21: use this column cell to "paint" input cells for percentages (NOT numbers)
G22: numbers | H22: %
B23: compulsory inputs (numbers and text) | G23: 234 | H23: 0.24
B24: Forecast Inputs | G24: 667 | H24: 0.05
B25: Error warnings and messages
B26: Error check (check =0)
B28: QA notes - annotation or documenation by QA staff
A31: User Instructions - IPART CHARTS
B33: Dark blue | C33: Lime | D33: Red | E33: Blue | F33: Light gold | G33: Green | H33: Maroon | I33: Light blue | L33: Blue solid | M33: Lime solid | N33: Red solid | O33: Blue dashes | P33: Lime dashes | Q33: Red dashes | S33: X value | T33: 1st Y value | U33: 2nd Y value | X33: Black | Y33: Red 100% | Z33: Red 70% | AA33: Grey 40%
A34: 1975-76 | B34: 36.19 | C34: 36.88 | D34: 21.56 | E34: 5.36 | F34: 3.01 | G34: 10 | H34: 3.01 | I34: 10 | K34: 1975-76 | L34: 33.19 | M34: 36.88 | N34: 21.56 | O34: 5.36 | P34: 3.01 | Q34: 10 | S34: 1.8 | T34: 10 | U34: 17 | W34: 1975-76 | X34: 33.19 | Y34: 36.88 | Z34: 21.56 | AA34: 5.36
A35: 1983-84 | B35: 39.39 | C35: 32.02 | D35: 21.6 | E35: 7.01 | F35: 3.36 | G35: 12 | H35: 3.36 | I35: 12 | K35: 1983-84 | L35: 39.39 | M35: 32.02 | N35: 21.6 | O35: 7.01 | P35: 3.36 | Q35: 12 | S35: 2.3 | T35: 12 | U35: 9 | W35: 1983-84 | X35: 39.39 | Y35: 32.02 | Z35: 21.6 | AA35: 7.01
A36: 1988-89 | B36: 42.78 | C36: 29.91 | D36: 18.35 | E36: 6.33 | F36: 2.63 | G36: 14 | H36: 2.63 | I36: 14 | K36: 1988-89 | L36: 42.78 | M36: 29.91 | N36: 18.35 | O36: 6.33 | P36: 2.63 | Q36: 14 | S36: 3.7 | T36: 16 | U36: 14 | W36: 1988-89 | X36: 42.78 | Y36: 29.91 | Z36: 18.35 | AA36: 6.33
A37: 1993-94 | B37: 42.13 | C37: 26.53 | D37: 21.6 | E37: 7.01 | F37: 2.72 | G37: 16 | H37: 2.72 | I37: 16 | K37: 1993-94 | L37: 42.13 | M37: 26.53 | N37: 21.6 | O37: 7.01 | P37: 2.72 | Q37: 16 | S37: 4.1 | T37: 8 | U37: 23 | W37: 1993-94 | X37: 42.13 | Y37: 26.53 | Z37: 21.6 | AA37: 7.01
A38: 1996-97 | B38: 41.69 | C38: 24.76 | D38: 23.98 | E38: 7 | F38: 2.57 | G38: 18 | H38: 2.57 | I38: 18 | K38: 1996-97 | L38: 41.69 | M38: 24.76 | N38: 23.98 | O38: 7 | P38: 2.57 | Q38: 18 | S38: 5.5 | T38: 14 | U38: 27 | W38: 1996-97 | X38: 41.69 | Y38: 24.76 | Z38: 23.98 | AA38: 7
A39: 1997-98 | B39: 39.39 | C39: 32.02 | D39: 21.6 | E39: 7.01 | F39: 3.36 | G39: 12 | H39: 3.36 | I39: 12 | K39: 1997-98 | L39: 39.39 | M39: 32.02 | N39: 21.6 | O39: 7.01 | P39: 3.36 | Q39: 12 | W39: 1997-98 | X39: 39.39 | Y39: 32.02 | Z39: 21.6 | AA39: 7.01
A40: 1998-99 | B40: 42.13 | C40: 26.53 | D40: 21.6 | E40: 7.01 | F40: 2.72 | G40: 16 | H40: 2.72 | I40: 16 | K40: 1998-99 | L40: 42.13 | M40: 26.53 | N40: 21.6 | O40: 7.01 | P40: 2.72 | Q40: 16 | W40: 1998-99 | X40: 42.13 | Y40: 26.53 | Z40: 21.6 | AA40: 7.01
A41: 1999-00 | B41: 45 | C41: 22 | D41: 26 | E41: 8 | F41: 2 | G41: 20 | H41: 2 | I41: 20 | K41: 1999-00 | L41: 45 | M41: 22 | N41: 26 | O41: 8 | P41: 2 | Q41: 20 | W41: 1999-00 | X41: 45 | Y41: 22 | Z41: 26 | AA41: 8
A42: – en rule for when needed

Sheet USER GUIDE
B2: LANDHOLDER COMPENSATION MODEL
B205: a NSW Department of Primary Industries, Leasing land - calculating a rental, January 2007, available at http://www.dpi.nsw.gov.au/__data/assets/pdf_file/0017/104093/leasing-land-calculating-a-rental.pdf accessed 16 November 2015
B206: b IPART, Review of external benefits of public transport - Draft report, December 2014, p 36, available at http://www.ipart.nsw.gov.au/Home/Industries/Transport/Reviews/External_Benefits_of_Public_Transport/External_Benefits_for_Public_Transport/16_Dec_2014_-_Draft_Report/Draft_Report_-_Review_of_external_benefits_of_public_transport_-_December_2014 accessed 16 November 2015

Sheet INPUT
B1: INPUTS
B2: PART A. Inputs for Compensation Payments
B3: PLEASE ENTER VALUES ONLY IN COLOURED CELLS | D3: Unit | E3: Fixed input | H3: Access Agreement Year
G4: =IF('DO NOT DELETE'!A11<=Access_Period,'DO NOT DELETE'!A11,IF(AND(Access_Period>0,'DO NOT DELETE'!A11=(Access_Period+1)),'DO NOT DELETE'!$AF$11,"")) -> 1 | H4: =IF('DO NOT DELETE'!B11<=Access_Period,'DO NOT DELETE'!B11,IF(AND(Access_Period>0,'DO NOT DELETE'!B11=(Access_Period+1)),'DO NOT DELETE'!$AF$11,"")) -> 2 | I4: =IF('DO NOT DELETE'!C11<=Access_Period,'DO NOT DELETE'!C11,IF(AND(Access_Period>0,'DO NOT DELETE'!C11=(Access_Period+1)),'DO NOT DELETE'!$AF$11,"")) -> 3 | J4: =IF('DO NOT DELETE'!D11<=Access_Period,'DO NOT DELETE'!D11,IF(AND(Access_Period>0,'DO NOT DELETE'!D11=(Access_Period+1)),'DO NOT DELETE'!$AF$11,"")) -> 4 | K4: =IF('DO NOT DELETE'!E11<=Access_Period,'DO NOT DELETE'!E11,IF(AND(Access_Period>0,'DO NOT DELETE'!E11=(Access_Period+1)),'DO NOT DELETE'!$AF$11,"")) -> 5 | L4: =IF('DO NOT DELETE'!F11<=Access_Period,'DO NOT DELETE'!F11,IF(AND(Access_Period>0,'DO NOT DELETE'!F11=(Access_Period+1)),'DO NOT DELETE'!$AF$11,"")) -> 6 | M4: =IF('DO NOT DELETE'!G11<=Access_Period,'DO NOT DELETE'!G11,IF(AND(Access_Period>0,'DO NOT DELETE'!G11=(Access_Period+1)),'DO NOT DELETE'!$AF$11,"")) -> 7 | N4: =IF('DO NOT DELETE'!H11<=Access_Period,'DO NOT DELETE'!H11,IF(AND(Access_Period>0,'DO NOT DELETE'!H11=(Access_Period+1)),'DO NOT DELETE'!$AF$11,"")) -> 8 | O4: =IF('DO NOT DELETE'!I11<=Access_Period,'DO NOT DELETE'!I11,IF(AND(Access_Period>0,'DO NOT DELETE'!I11=(Access_Period+1)),'DO NOT DELETE'!$AF$11,"")) -> 9 | P4: =IF('DO NOT DELETE'!J11<=Access_Period,'DO NOT DELETE'!J11,IF(AND(Access_Period>0,'DO NOT DELETE'!J11=(Access_Period+1)),'DO NOT DELETE'!$AF$11,"")) -> 10 | Q4: =IF('DO NOT DELETE'!K11<=Access_Period,'DO NOT DELETE'!K11,IF(AND(Access_Period>0,'DO NOT DELETE'!K11=(Access_Period+1)),'DO NOT DELETE'!$AF$11,"")) -> 11 | R4: =IF('DO NOT DELETE'!L11<=Access_Period,'DO NOT DELETE'!L11,IF(AND(Access_Period>0,'DO NOT DELETE'!L11=(Access_Period+1)),'DO NOT DELETE'!$AF$11,"")) -> 12 | S4: =IF('DO NOT DELETE'!M11<=Access_Period,'DO NOT DELETE'!M11,IF(AND(Access_Period>0,'DO NOT DELETE'!M11=(Access_Period+1)),'DO NOT DELETE'!$AF$11,"")) -> 13 | T4: =IF('DO NOT DELETE'!N11<=Access_Period,'DO NOT DELETE'!N11,IF(AND(Access_Period>0,'DO NOT DELETE'!N11=(Access_Period+1)),'DO NOT DELETE'!$AF$11,"")) -> 14 | U4: =IF('DO NOT DELETE'!O11<=Access_Period,'DO NOT DELETE'!O11,IF(AND(Access_Period>0,'DO NOT DELETE'!O11=(Access_Period+1)),'DO NOT DELETE'!$AF$11,"")) -> 15 | V4: =IF('DO NOT DELETE'!P11<=Access_Period,'DO NOT DELETE'!P11,IF(AND(Access_Period>0,'DO NOT DELETE'!P11=(Access_Period+1)),'DO NOT DELETE'!$AF$11,"")) -> 16 | W4: =IF('DO NOT DELETE'!Q11<=Access_Period,'DO NOT DELETE'!Q11,IF(AND(Access_Period>0,'DO NOT DELETE'!Q11=(Access_Period+1)),'DO NOT DELETE'!$AF$11,"")) -> 17 | X4: =IF('DO NOT DELETE'!R11<=Access_Period,'DO NOT DELETE'!R11,IF(AND(Access_Period>0,'DO NOT DELETE'!R11=(Access_Period+1)),'DO NOT DELETE'!$AF$11,"")) -> 18 | Y4: =IF('DO NOT DELETE'!S11<=Access_Period,'DO NOT DELETE'!S11,IF(AND(Access_Period>0,'DO NOT DELETE'!S11=(Access_Period+1)),'DO NOT DELETE'!$AF$11,"")) -> 19 | Z4: =IF('DO NOT DELETE'!T11<=Access_Period,'DO NOT DELETE'!T11,IF(AND(Access_Period>0,'DO NOT DELETE'!T11=(Access_Period+1)),'DO NOT DELETE'!$AF$11,"")) -> 20 | AA4: =IF('DO NOT DELETE'!U11<=Access_Period,'DO NOT DELETE'!U11,IF(AND(Access_Period>0,'DO NOT DELETE'!U11=(Access_Period+1)),'DO NOT DELETE'!$AF$11,"")) -> Rehabilitation | AB4: =IF('DO NOT DELETE'!V11<=Access_Period,'DO NOT DELETE'!V11,IF(AND(Access_Period>0,'DO NOT DELETE'!V11=(Access_Period+1)),'DO NOT DELETE'!$AF$11,"")) ->  | AC4: =IF('DO NOT DELETE'!W11<=Access_Period,'DO NOT DELETE'!W11,IF(AND(Access_Period>0,'DO NOT DELETE'!W11=(Access_Period+1)),'DO NOT DELETE'!$AF$11,"")) ->  | AD4: =IF('DO NOT DELETE'!X11<=Access_Period,'DO NOT DELETE'!X11,IF(AND(Access_Period>0,'DO NOT DELETE'!X11=(Access_Period+1)),'DO NOT DELETE'!$AF$11,"")) ->  | AE4: =IF('DO NOT DELETE'!Y11<=Access_Period,'DO NOT DELETE'!Y11,IF(AND(Access_Period>0,'DO NOT DELETE'!Y11=(Access_Period+1)),'DO NOT DELETE'!$AF$11,"")) ->  | AF4: =IF('DO NOT DELETE'!Z11<=Access_Period,'DO NOT DELETE'!Z11,IF(AND(Access_Period>0,'DO NOT DELETE'!Z11=(Access_Period+1)),'DO NOT DELETE'!$AF$11,"")) ->  | AG4: =IF('DO NOT DELETE'!AA11<=Access_Period,'DO NOT DELETE'!AA11,IF(AND(Access_Period>0,'DO NOT DELETE'!AA11=(Access_Period+1)),'DO NOT DELETE'!$AF$11,"")) ->  | AH4: =IF('DO NOT DELETE'!AB11<=Access_Period,'DO NOT DELETE'!AB11,IF(AND(Access_Period>0,'DO NOT DELETE'!AB11=(Access_Period+1)),'DO NOT DELETE'!$AF$11,"")) ->  | AI4: =IF('DO NOT DELETE'!AC11<=Access_Period,'DO NOT DELETE'!AC11,IF(AND(Access_Period>0,'DO NOT DELETE'!AC11=(Access_Period+1)),'DO NOT DELETE'!$AF$11,"")) ->  | AJ4: =IF('DO NOT DELETE'!AD11<=Access_Period,'DO NOT DELETE'!AD11,IF(AND(Access_Period>0,'DO NOT DELETE'!AD11=(Access_Period+1)),'DO NOT DELETE'!$AF$11,"")) ->  | AK4: =IF('DO NOT DELETE'!AE11<=Access_Period,'DO NOT DELETE'!AE11,IF(AND(Access_Period>0,'DO NOT DELETE'!AE11=(Access_Period+1)),'DO NOT DELETE'!$AF$11,"")) -> 
B5: 1. Land access agreement details
C6: How long is your access agreement for? (Maximum is 30 years) | D6: Year | E6: 20
B7: 2. Landholding details
C8: What is the total area of your land in hectares? If you have land area in a different unit, use the "CONVERSION" worksheet to convert into hectares. | D8: Hectare | E8: 200
C9: What is the estimated value of your land per hectare in nominal terms (ie, including inflation)? If you have land value in a different unit, use the "CONVERSION" worksheet to convert into $/hectare. | D9: Dollar per hectare | G9: 15000 | K9: 18000
C10: What is the rental value of land as a percentage of land value? | D10: Percent | G10: 0.08 | K10: 0.09
B11: 3. Estimated impacts
B12: (a) | C12: Directly impacted land
C13: What is the total area of land used by gas company? | D13: Hectare | G13: 10 | H13: 5.25
B14: (b) | C14: Residual land (your total land area excluding directly impacted land)
C15: What is an estimated reduction in the value of residual land due to severance? | D15: Percent | G15: 0 | H15: 0
C16: What is an estimated reduction in the value of residual land due to injurious affection? | D16: Percent | G16: 0.2 | H16: 0.1
B17: (c) | C17: How long is the rehabilitation period? | D17: Weeks | E17: 52
B18: 4. Cost of landholder time and expert advice
C19: How many hours did you spend negotiating your access agreement? | D19: Hours in total | E19: 150
C20: How many hours do you expect to spend each year on matters related to you access agreement? | D20: Hours per annum | E20: 50
C21: Enter an estimate of the value of your time | D21: Per hour | E21: 50
C22: How much did you spend on fees for professional advice including GST? | D22: Per agreement | E22: 40000
B23: 5. Other assumption
C24: What rate of return would you expect to earn on financial investments per year in nominal terms? You need this input only if you wish to calculate a lump-sum upfront payment. | D24: Percent per annum | E24: 0.035
C25: Inflation rate | D25: Percent | E25: 0.025
B26: PART B. Inputs for Benefit Payments
B27: PLEASE ENTER VALUES ONLY IN COLOURED CELLS | D27: Unit | E27: Fixed input | H27: Access Agreement Year
G28: =IF('DO NOT DELETE'!A11<=Access_Period,'DO NOT DELETE'!A11,"") -> 1 | H28: =IF('DO NOT DELETE'!B11<=Access_Period,'DO NOT DELETE'!B11,"") -> 2 | I28: =IF('DO NOT DELETE'!C11<=Access_Period,'DO NOT DELETE'!C11,"") -> 3 | J28: =IF('DO NOT DELETE'!D11<=Access_Period,'DO NOT DELETE'!D11,"") -> 4 | K28: =IF('DO NOT DELETE'!E11<=Access_Period,'DO NOT DELETE'!E11,"") -> 5 | L28: =IF('DO NOT DELETE'!F11<=Access_Period,'DO NOT DELETE'!F11,"") -> 6 | M28: =IF('DO NOT DELETE'!G11<=Access_Period,'DO NOT DELETE'!G11,"") -> 7 | N28: =IF('DO NOT DELETE'!H11<=Access_Period,'DO NOT DELETE'!H11,"") -> 8 | O28: =IF('DO NOT DELETE'!I11<=Access_Period,'DO NOT DELETE'!I11,"") -> 9 | P28: =IF('DO NOT DELETE'!J11<=Access_Period,'DO NOT DELETE'!J11,"") -> 10 | Q28: =IF('DO NOT DELETE'!K11<=Access_Period,'DO NOT DELETE'!K11,"") -> 11 | R28: =IF('DO NOT DELETE'!L11<=Access_Period,'DO NOT DELETE'!L11,"") -> 12 | S28: =IF('DO NOT DELETE'!M11<=Access_Period,'DO NOT DELETE'!M11,"") -> 13 | T28: =IF('DO NOT DELETE'!N11<=Access_Period,'DO NOT DELETE'!N11,"") -> 14 | U28: =IF('DO NOT DELETE'!O11<=Access_Period,'DO NOT DELETE'!O11,"") -> 15 | V28: =IF('DO NOT DELETE'!P11<=Access_Period,'DO NOT DELETE'!P11,"") -> 16 | W28: =IF('DO NOT DELETE'!Q11<=Access_Period,'DO NOT DELETE'!Q11,"") -> 17 | X28: =IF('DO NOT DELETE'!R11<=Access_Period,'DO NOT DELETE'!R11,"") -> 18 | Y28: =IF('DO NOT DELETE'!S11<=Access_Period,'DO NOT DELETE'!S11,"") -> 19 | Z28: =IF('DO NOT DELETE'!T11<=Access_Period,'DO NOT DELETE'!T11,"") -> 20 | AA28: =IF('DO NOT DELETE'!U11<=Access_Period,'DO NOT DELETE'!U11,"") ->  | AB28: =IF('DO NOT DELETE'!V11<=Access_Period,'DO NOT DELETE'!V11,"") ->  | AC28: =IF('DO NOT DELETE'!W11<=Access_Period,'DO NOT DELETE'!W11,"") ->  | AD28: =IF('DO NOT DELETE'!X11<=Access_Period,'DO NOT DELETE'!X11,"") ->  | AE28: =IF('DO NOT DELETE'!Y11<=Access_Period,'DO NOT DELETE'!Y11,"") ->  | AF28: =IF('DO NOT DELETE'!Z11<=Access_Period,'DO NOT DELETE'!Z11,"") ->  | AG28: =IF('DO NOT DELETE'!AA11<=Access_Period,'DO NOT DELETE'!AA11,"") ->  | AH28: =IF('DO NOT DELETE'!AB11<=Access_Period,'DO NOT DELETE'!AB11,"") ->  | AI28: =IF('DO NOT DELETE'!AC11<=Access_Period,'DO NOT DELETE'!AC11,"") ->  | AJ28: =IF('DO NOT DELETE'!AD11<=Access_Period,'DO NOT DELETE'!AD11,"") ->  | AK28: =IF('DO NOT DELETE'!AE11<=Access_Period,'DO NOT DELETE'!AE11,"") -> 
B29: What is your benefit payment based on? | E29: 1
C30: In which year from Year 2 to Year 10 is the gas project expected to enter the production stage? | D30: Year | E30: 4
B31: ="Provide inputs below from Year " &Production_Year -> Provide inputs below from Year 4
C32: =IF($E$29=1,'DO NOT DELETE'!$B$5:$B$7,IF($E$29=2,'DO NOT DELETE'!$C$5:$C$7,'DO NOT DELETE'!$D$5:$D$7)) -> Gas company's statutory annual royalty payment in nominal terms (ie, including inflation) | D32: =IF($E$29=1,'DO NOT DELETE'!$B$14:$B$16,IF($E$29=2,'DO NOT DELETE'!$C$14:$C$16,'DO NOT DELETE'!$D$14:$D$16)) -> Dollar per annum | J32: 1500000
C33: % of royalty gas company contributes to incentive fund | D33: Percent | J33: 5
C34: Total licence area for production | D34: Hectares | J34: 22
B36: Disclaimer: This model was developed by the Independent Pricing and Regulatory Tribunal (IPART) as a benchmark guide for landholders in NSW. We recommend that landholders seek professional advice when negotiating a land access and compensation agreement.

Sheet RESULTS
B1: RESULTS
B2: PART A. Compensation Payments | F2: PART B. Benefit Payments | J2: PART C. Payment Schedule
B3: Please select an option to get an estimate of your compensation. Select "Lump-sum Upfront Payment" to get a single upfront payment. Select "Annual Payments" for a series of annual payments. | F3: A schedule of your benefit payments is provided below. | J3: The graph below shows compensation payment schedule over your access agreement period.
B4: Payment Structure:
B5: Note: Where the costs of expert advice have been incurred by landholders, the first year compensation is higher due to the inclusion of the reimbursment of the costs of expert advice. | F5: Note: This model assumes the provision of benefit payments during the production stage of a CSG project. Benefit payments are not mandatory and gas companies may choose to provide other in-kind benefits.
A6: =MAX(COUNT(B7:B106),COUNT(F7:F106)) -> 20 | B6: Beginning of Year | C6: Annual Payment ($Nominal) | F6: Beginning of Year | G6: Annual Payment ($Nominal)
A7: 1 | B7: =TRANSPOSE(CALC!D23:AH23) -> 1 | C7: =TRANSPOSE(CALC!D28:AH28) -> 105100 | F7: =TRANSPOSE(CALC!D36:AH36) -> 1 | G7: =TRANSPOSE(CALC!D37:AH37) -> 
A8: 2 | B8: 2 | C8: 32974.25 | F8: 2
A9: 3 | B9: 3 | C9: 33798.60625 | F9: 3
A10: 4 | B10: 4 | C10: 34643.57141 | F10: 4
A11: 5 | B11: 5 | C11: 42814.03223 | F11: 5 | G11: 17897.72727
A12: 6 | B12: 6 | C12: 43884.38303 | F12: 6 | G12: 18345.17045
A13: 7 | B13: 7 | C13: 44981.49261 | F13: 7 | G13: 18803.79972
A14: 8 | B14: 8 | C14: 46106.02992 | F14: 8 | G14: 19273.89471
A15: 9 | B15: 9 | C15: 47258.68067 | F15: 9 | G15: 19755.74208
A16: 10 | B16: 10 | C16: 48440.14769 | F16: 10 | G16: 20249.63563
A17: 11 | B17: 11 | C17: 49651.15138 | F17: 11 | G17: 20755.87652
A18: 12 | B18: 12 | C18: 50892.43016 | F18: 12 | G18: 21274.77343
A19: 13 | B19: 13 | C19: 52164.74092 | F19: 13 | G19: 21806.64277
A20: 14 | B20: 14 | C20: 53468.85944 | F20: 14 | G20: 22351.80884
A21: 15 | B21: 15 | C21: 54805.58093 | F21: 15 | G21: 22910.60406
A22: 16 | B22: 16 | C22: 56175.72045 | F22: 16 | G22: 23483.36916
A23: 17 | B23: 17 | C23: 57580.11346 | F23: 17 | G23: 24070.45339
A24: 18 | B24: 18 | C24: 59019.6163 | F24: 18 | G24: 24672.21472
A25: 19 | B25: 19 | C25: 60495.10671 | F25: 19 | G25: 25289.02009
A26: 20 | B26: 20 | C26: 62007.48437 | F26: 20 | G26: 25921.24559
A27: 21 | B27: Rehabilitation | C27: 58010.85891
A28: 22
A29: 23
A30: 24
A31: 25
A32: 26
A33: 27
A34: 28
A35: 29
A36: 30
A37: 31
A38: 32
A39: 33
A40: 34
A41: 35
A42: 36
A43: 37
A44: 38
A45: 39
A46: 40
A47: 41
A48: 42
A49: 43
A50: 44
A51: 45
A52: 46
A53: 47
A54: 48
A55: 49
A56: 50
A57: 51
A58: 52
A59: 53
A60: 54
A61: 55
A62: 56
A63: 57
A64: 58
A65: 59
A66: 60
A67: 61
A68: 62
A69: 63
A70: 64
A71: 65
A72: 66
A73: 67
A74: 68
A75: 69
A76: 70
A77: 71
A78: 72
A79: 73
A80: 74
A81: 75
A82: 76
A83: 77
A84: 78
A85: 79
A86: 80
A87: 81
A88: 82
A89: 83
A90: 84
A91: 85
A92: 86
A93: 87
A94: 88
A95: 89
A96: 90
A97: 91
A98: 92
A99: 93
A100: 94
A101: 95
A102: 96
A103: 97
A104: 98
A105: 99
A106: 100

Sheet CALC
B2: DETAILED CALCULATIONS
B3: Inputs
B4: Beginning of Year | C4: Rehabilitation
B5: Land value | C5: =IF(LOOKUP($C$4,INPUT!$G$4:$AK$4,INPUT!$G$9:$AK$9)="","",LOOKUP($C$4,INPUT!$G$4:$AK$4,INPUT!$G$9:$AK$9)) -> 
B6: Rental rate | C6: =IF(LOOKUP($C$4,INPUT!$G$4:$AK$4,INPUT!$G$10:$AK$10)="","",LOOKUP($C$4,INPUT!$G$4:$AK$4,INPUT!$G$10:$AK$10)) -> 
B7: Total land area used by gas company | C7: =IF(LOOKUP($C$4,INPUT!$G$4:$AK$4,INPUT!$G$13:$AK$13)="","",LOOKUP($C$4,INPUT!$G$4:$AK$4,INPUT!$G$13:$AK$13)) -> 
B8: Severance | C8: =IF(LOOKUP($C$4,INPUT!$G$4:$AK$4,INPUT!$G$15:$AK$15)="","",LOOKUP($C$4,INPUT!$G$4:$AK$4,INPUT!$G$15:$AK$15)) -> 
B9: Injurious affections | C9: =IF(LOOKUP($C$4,INPUT!$G$4:$AK$4,INPUT!$G$16:$AK$16)="","",LOOKUP($C$4,INPUT!$G$4:$AK$4,INPUT!$G$16:$AK$16)) -> 
B11: \ | C11: 0 | D11: 1 | E11: 2 | F11: 3 | G11: 4 | H11: 5 | I11: 6 | J11: 7 | K11: 8 | L11: 9 | M11: 10 | N11: 11 | O11: 12 | P11: 13 | Q11: 14 | R11: 15 | S11: 16 | T11: 17 | U11: 18 | V11: 19 | W11: 20 | X11: 21 | Y11: 22 | Z11: 23 | AA11: 24 | AB11: 25 | AC11: 26 | AD11: 27 | AE11: 28 | AF11: 29 | AG11: 30 | AH11: 31
B12: Beginning of Year | D12: =IF('DO NOT DELETE'!A11<=Access_Period,'DO NOT DELETE'!A11,IF(AND(Access_Period>0,'DO NOT DELETE'!A11=(Access_Period+1)),'DO NOT DELETE'!$AF$11,"")) -> 1 | E12: =IF('DO NOT DELETE'!B11<=Access_Period,'DO NOT DELETE'!B11,IF(AND(Access_Period>0,'DO NOT DELETE'!B11=(Access_Period+1)),'DO NOT DELETE'!$AF$11,"")) -> 2 | F12: =IF('DO NOT DELETE'!C11<=Access_Period,'DO NOT DELETE'!C11,IF(AND(Access_Period>0,'DO NOT DELETE'!C11=(Access_Period+1)),'DO NOT DELETE'!$AF$11,"")) -> 3 | G12: =IF('DO NOT DELETE'!D11<=Access_Period,'DO NOT DELETE'!D11,IF(AND(Access_Period>0,'DO NOT DELETE'!D11=(Access_Period+1)),'DO NOT DELETE'!$AF$11,"")) -> 4 | H12: =IF('DO NOT DELETE'!E11<=Access_Period,'DO NOT DELETE'!E11,IF(AND(Access_Period>0,'DO NOT DELETE'!E11=(Access_Period+1)),'DO NOT DELETE'!$AF$11,"")) -> 5 | I12: =IF('DO NOT DELETE'!F11<=Access_Period,'DO NOT DELETE'!F11,IF(AND(Access_Period>0,'DO NOT DELETE'!F11=(Access_Period+1)),'DO NOT DELETE'!$AF$11,"")) -> 6 | J12: =IF('DO NOT DELETE'!G11<=Access_Period,'DO NOT DELETE'!G11,IF(AND(Access_Period>0,'DO NOT DELETE'!G11=(Access_Period+1)),'DO NOT DELETE'!$AF$11,"")) -> 7 | K12: =IF('DO NOT DELETE'!H11<=Access_Period,'DO NOT DELETE'!H11,IF(AND(Access_Period>0,'DO NOT DELETE'!H11=(Access_Period+1)),'DO NOT DELETE'!$AF$11,"")) -> 8 | L12: =IF('DO NOT DELETE'!I11<=Access_Period,'DO NOT DELETE'!I11,IF(AND(Access_Period>0,'DO NOT DELETE'!I11=(Access_Period+1)),'DO NOT DELETE'!$AF$11,"")) -> 9 | M12: =IF('DO NOT DELETE'!J11<=Access_Period,'DO NOT DELETE'!J11,IF(AND(Access_Period>0,'DO NOT DELETE'!J11=(Access_Period+1)),'DO NOT DELETE'!$AF$11,"")) -> 10 | N12: =IF('DO NOT DELETE'!K11<=Access_Period,'DO NOT DELETE'!K11,IF(AND(Access_Period>0,'DO NOT DELETE'!K11=(Access_Period+1)),'DO NOT DELETE'!$AF$11,"")) -> 11 | O12: =IF('DO NOT DELETE'!L11<=Access_Period,'DO NOT DELETE'!L11,IF(AND(Access_Period>0,'DO NOT DELETE'!L11=(Access_Period+1)),'DO NOT DELETE'!$AF$11,"")) -> 12 | P12: =IF('DO NOT DELETE'!M11<=Access_Period,'DO NOT DELETE'!M11,IF(AND(Access_Period>0,'DO NOT DELETE'!M11=(Access_Period+1)),'DO NOT DELETE'!$AF$11,"")) -> 13 | Q12: =IF('DO NOT DELETE'!N11<=Access_Period,'DO NOT DELETE'!N11,IF(AND(Access_Period>0,'DO NOT DELETE'!N11=(Access_Period+1)),'DO NOT DELETE'!$AF$11,"")) -> 14 | R12: =IF('DO NOT DELETE'!O11<=Access_Period,'DO NOT DELETE'!O11,IF(AND(Access_Period>0,'DO NOT DELETE'!O11=(Access_Period+1)),'DO NOT DELETE'!$AF$11,"")) -> 15 | S12: =IF('DO NOT DELETE'!P11<=Access_Period,'DO NOT DELETE'!P11,IF(AND(Access_Period>0,'DO NOT DELETE'!P11=(Access_Period+1)),'DO NOT DELETE'!$AF$11,"")) -> 16 | T12: =IF('DO NOT DELETE'!Q11<=Access_Period,'DO NOT DELETE'!Q11,IF(AND(Access_Period>0,'DO NOT DELETE'!Q11=(Access_Period+1)),'DO NOT DELETE'!$AF$11,"")) -> 17 | U12: =IF('DO NOT DELETE'!R11<=Access_Period,'DO NOT DELETE'!R11,IF(AND(Access_Period>0,'DO NOT DELETE'!R11=(Access_Period+1)),'DO NOT DELETE'!$AF$11,"")) -> 18 | V12: =IF('DO NOT DELETE'!S11<=Access_Period,'DO NOT DELETE'!S11,IF(AND(Access_Period>0,'DO NOT DELETE'!S11=(Access_Period+1)),'DO NOT DELETE'!$AF$11,"")) -> 19 | W12: =IF('DO NOT DELETE'!T11<=Access_Period,'DO NOT DELETE'!T11,IF(AND(Access_Period>0,'DO NOT DELETE'!T11=(Access_Period+1)),'DO NOT DELETE'!$AF$11,"")) -> 20 | X12: =IF('DO NOT DELETE'!U11<=Access_Period,'DO NOT DELETE'!U11,IF(AND(Access_Period>0,'DO NOT DELETE'!U11=(Access_Period+1)),'DO NOT DELETE'!$AF$11,"")) -> Rehabilitation | Y12: =IF('DO NOT DELETE'!V11<=Access_Period,'DO NOT DELETE'!V11,IF(AND(Access_Period>0,'DO NOT DELETE'!V11=(Access_Period+1)),'DO NOT DELETE'!$AF$11,"")) ->  | Z12: =IF('DO NOT DELETE'!W11<=Access_Period,'DO NOT DELETE'!W11,IF(AND(Access_Period>0,'DO NOT DELETE'!W11=(Access_Period+1)),'DO NOT DELETE'!$AF$11,"")) ->  | AA12: =IF('DO NOT DELETE'!X11<=Access_Period,'DO NOT DELETE'!X11,IF(AND(Access_Period>0,'DO NOT DELETE'!X11=(Access_Period+1)),'DO NOT DELETE'!$AF$11,"")) ->  | AB12: =IF('DO NOT DELETE'!Y11<=Access_Period,'DO NOT DELETE'!Y11,IF(AND(Access_Period>0,'DO NOT DELETE'!Y11=(Access_Period+1)),'DO NOT DELETE'!$AF$11,"")) ->  | AC12: =IF('DO NOT DELETE'!Z11<=Access_Period,'DO NOT DELETE'!Z11,IF(AND(Access_Period>0,'DO NOT DELETE'!Z11=(Access_Period+1)),'DO NOT DELETE'!$AF$11,"")) ->  | AD12: =IF('DO NOT DELETE'!AA11<=Access_Period,'DO NOT DELETE'!AA11,IF(AND(Access_Period>0,'DO NOT DELETE'!AA11=(Access_Period+1)),'DO NOT DELETE'!$AF$11,"")) ->  | AE12: =IF('DO NOT DELETE'!AB11<=Access_Period,'DO NOT DELETE'!AB11,IF(AND(Access_Period>0,'DO NOT DELETE'!AB11=(Access_Period+1)),'DO NOT DELETE'!$AF$11,"")) ->  | AF12: =IF('DO NOT DELETE'!AC11<=Access_Period,'DO NOT DELETE'!AC11,IF(AND(Access_Period>0,'DO NOT DELETE'!AC11=(Access_Period+1)),'DO NOT DELETE'!$AF$11,"")) ->  | AG12: =IF('DO NOT DELETE'!AD11<=Access_Period,'DO NOT DELETE'!AD11,IF(AND(Access_Period>0,'DO NOT DELETE'!AD11=(Access_Period+1)),'DO NOT DELETE'!$AF$11,"")) ->  | AH12: =IF('DO NOT DELETE'!AE11<=Access_Period,'DO NOT DELETE'!AE11,IF(AND(Access_Period>0,'DO NOT DELETE'!AE11=(Access_Period+1)),'DO NOT DELETE'!$AF$11,"")) -> 
B13: Land value | D13: =IF(D12>Access_Period,IF(D12="Rehabilitation",IF($C$5="",C13,$C$5),""),IF(AND(D12<=Access_Period,INPUT!G9=""),C13*(1+Inflation),INPUT!G9)) -> 15000 | E13: =IF(E12>Access_Period,IF(E12="Rehabilitation",IF($C$5="",D13,$C$5),""),IF(AND(E12<=Access_Period,INPUT!H9=""),D13*(1+Inflation),INPUT!H9)) -> 15375 | F13: =IF(F12>Access_Period,IF(F12="Rehabilitation",IF($C$5="",E13,$C$5),""),IF(AND(F12<=Access_Period,INPUT!I9=""),E13*(1+Inflation),INPUT!I9)) -> 15759.375 | G13: =IF(G12>Access_Period,IF(G12="Rehabilitation",IF($C$5="",F13,$C$5),""),IF(AND(G12<=Access_Period,INPUT!J9=""),F13*(1+Inflation),INPUT!J9)) -> 16153.35937 | H13: =IF(H12>Access_Period,IF(H12="Rehabilitation",IF($C$5="",G13,$C$5),""),IF(AND(H12<=Access_Period,INPUT!K9=""),G13*(1+Inflation),INPUT!K9)) -> 18000 | I13: =IF(I12>Access_Period,IF(I12="Rehabilitation",IF($C$5="",H13,$C$5),""),IF(AND(I12<=Access_Period,INPUT!L9=""),H13*(1+Inflation),INPUT!L9)) -> 18450 | J13: =IF(J12>Access_Period,IF(J12="Rehabilitation",IF($C$5="",I13,$C$5),""),IF(AND(J12<=Access_Period,INPUT!M9=""),I13*(1+Inflation),INPUT!M9)) -> 18911.25 | K13: =IF(K12>Access_Period,IF(K12="Rehabilitation",IF($C$5="",J13,$C$5),""),IF(AND(K12<=Access_Period,INPUT!N9=""),J13*(1+Inflation),INPUT!N9)) -> 19384.03125 | L13: =IF(L12>Access_Period,IF(L12="Rehabilitation",IF($C$5="",K13,$C$5),""),IF(AND(L12<=Access_Period,INPUT!O9=""),K13*(1+Inflation),INPUT!O9)) -> 19868.63203 | M13: =IF(M12>Access_Period,IF(M12="Rehabilitation",IF($C$5="",L13,$C$5),""),IF(AND(M12<=Access_Period,INPUT!P9=""),L13*(1+Inflation),INPUT!P9)) -> 20365.34783 | N13: =IF(N12>Access_Period,IF(N12="Rehabilitation",IF($C$5="",M13,$C$5),""),IF(AND(N12<=Access_Period,INPUT!Q9=""),M13*(1+Inflation),INPUT!Q9)) -> 20874.48153 | O13: =IF(O12>Access_Period,IF(O12="Rehabilitation",IF($C$5="",N13,$C$5),""),IF(AND(O12<=Access_Period,INPUT!R9=""),N13*(1+Inflation),INPUT!R9)) -> 21396.34357 | P13: =IF(P12>Access_Period,IF(P12="Rehabilitation",IF($C$5="",O13,$C$5),""),IF(AND(P12<=Access_Period,INPUT!S9=""),O13*(1+Inflation),INPUT!S9)) -> 21931.25216 | Q13: =IF(Q12>Access_Period,IF(Q12="Rehabilitation",IF($C$5="",P13,$C$5),""),IF(AND(Q12<=Access_Period,INPUT!T9=""),P13*(1+Inflation),INPUT!T9)) -> 22479.53346 | R13: =IF(R12>Access_Period,IF(R12="Rehabilitation",IF($C$5="",Q13,$C$5),""),IF(AND(R12<=Access_Period,INPUT!U9=""),Q13*(1+Inflation),INPUT!U9)) -> 23041.5218 | S13: =IF(S12>Access_Period,IF(S12="Rehabilitation",IF($C$5="",R13,$C$5),""),IF(AND(S12<=Access_Period,INPUT!V9=""),R13*(1+Inflation),INPUT!V9)) -> 23617.55984 | T13: =IF(T12>Access_Period,IF(T12="Rehabilitation",IF($C$5="",S13,$C$5),""),IF(AND(T12<=Access_Period,INPUT!W9=""),S13*(1+Inflation),INPUT!W9)) -> 24207.99884 | U13: =IF(U12>Access_Period,IF(U12="Rehabilitation",IF($C$5="",T13,$C$5),""),IF(AND(U12<=Access_Period,INPUT!X9=""),T13*(1+Inflation),INPUT!X9)) -> 24813.19881 | V13: =IF(V12>Access_Period,IF(V12="Rehabilitation",IF($C$5="",U13,$C$5),""),IF(AND(V12<=Access_Period,INPUT!Y9=""),U13*(1+Inflation),INPUT!Y9)) -> 25433.52878 | W13: =IF(W12>Access_Period,IF(W12="Rehabilitation",IF($C$5="",V13,$C$5),""),IF(AND(W12<=Access_Period,INPUT!Z9=""),V13*(1+Inflation),INPUT!Z9)) -> 26069.367 | X13: =IF(X12>Access_Period,IF(X12="Rehabilitation",IF($C$5="",W13,$C$5),""),IF(AND(X12<=Access_Period,INPUT!AA9=""),W13*(1+Inflation),INPUT!AA9)) -> 26069.367 | Y13: =IF(Y12>Access_Period,IF(Y12="Rehabilitation",IF($C$5="",X13,$C$5),""),IF(AND(Y12<=Access_Period,INPUT!AB9=""),X13*(1+Inflation),INPUT!AB9)) ->  | Z13: =IF(Z12>Access_Period,IF(Z12="Rehabilitation",IF($C$5="",Y13,$C$5),""),IF(AND(Z12<=Access_Period,INPUT!AC9=""),Y13*(1+Inflation),INPUT!AC9)) ->  | AA13: =IF(AA12>Access_Period,IF(AA12="Rehabilitation",IF($C$5="",Z13,$C$5),""),IF(AND(AA12<=Access_Period,INPUT!AD9=""),Z13*(1+Inflation),INPUT!AD9)) ->  | AB13: =IF(AB12>Access_Period,IF(AB12="Rehabilitation",IF($C$5="",AA13,$C$5),""),IF(AND(AB12<=Access_Period,INPUT!AE9=""),AA13*(1+Inflation),INPUT!AE9)) ->  | AC13: =IF(AC12>Access_Period,IF(AC12="Rehabilitation",IF($C$5="",AB13,$C$5),""),IF(AND(AC12<=Access_Period,INPUT!AF9=""),AB13*(1+Inflation),INPUT!AF9)) ->  | AD13: =IF(AD12>Access_Period,IF(AD12="Rehabilitation",IF($C$5="",AC13,$C$5),""),IF(AND(AD12<=Access_Period,INPUT!AG9=""),AC13*(1+Inflation),INPUT!AG9)) ->  | AE13: =IF(AE12>Access_Period,IF(AE12="Rehabilitation",IF($C$5="",AD13,$C$5),""),IF(AND(AE12<=Access_Period,INPUT!AH9=""),AD13*(1+Inflation),INPUT!AH9)) ->  | AF13: =IF(AF12>Access_Period,IF(AF12="Rehabilitation",IF($C$5="",AE13,$C$5),""),IF(AND(AF12<=Access_Period,INPUT!AI9=""),AE13*(1+Inflation),INPUT!AI9)) ->  | AG13: =IF(AG12>Access_Period,IF(AG12="Rehabilitation",IF($C$5="",AF13,$C$5),""),IF(AND(AG12<=Access_Period,INPUT!AJ9=""),AF13*(1+Inflation),INPUT!AJ9)) ->  | AH13: =IF(AH12>Access_Period,IF(AH12="Rehabilitation",IF($C$5="",AG13,$C$5),""),IF(AND(AH12<=Access_Period,INPUT!AK9=""),AG13*(1+Inflation),INPUT!AK9)) -> 
B14: Rental rate | D14: =IF(D12>Access_Period,IF(D12="Rehabilitation",IF($C$6="",C14,$C$6),""),IF(AND(D12<=Access_Period,INPUT!G10=""),C14,INPUT!G10)) -> 0.08 | E14: =IF(E12>Access_Period,IF(E12="Rehabilitation",IF($C$6="",D14,$C$6),""),IF(AND(E12<=Access_Period,INPUT!H10=""),D14,INPUT!H10)) -> 0.08 | F14: =IF(F12>Access_Period,IF(F12="Rehabilitation",IF($C$6="",E14,$C$6),""),IF(AND(F12<=Access_Period,INPUT!I10=""),E14,INPUT!I10)) -> 0.08 | G14: =IF(G12>Access_Period,IF(G12="Rehabilitation",IF($C$6="",F14,$C$6),""),IF(AND(G12<=Access_Period,INPUT!J10=""),F14,INPUT!J10)) -> 0.08 | H14: =IF(H12>Access_Period,IF(H12="Rehabilitation",IF($C$6="",G14,$C$6),""),IF(AND(H12<=Access_Period,INPUT!K10=""),G14,INPUT!K10)) -> 0.09 | I14: =IF(I12>Access_Period,IF(I12="Rehabilitation",IF($C$6="",H14,$C$6),""),IF(AND(I12<=Access_Period,INPUT!L10=""),H14,INPUT!L10)) -> 0.09 | J14: =IF(J12>Access_Period,IF(J12="Rehabilitation",IF($C$6="",I14,$C$6),""),IF(AND(J12<=Access_Period,INPUT!M10=""),I14,INPUT!M10)) -> 0.09 | K14: =IF(K12>Access_Period,IF(K12="Rehabilitation",IF($C$6="",J14,$C$6),""),IF(AND(K12<=Access_Period,INPUT!N10=""),J14,INPUT!N10)) -> 0.09 | L14: =IF(L12>Access_Period,IF(L12="Rehabilitation",IF($C$6="",K14,$C$6),""),IF(AND(L12<=Access_Period,INPUT!O10=""),K14,INPUT!O10)) -> 0.09 | M14: =IF(M12>Access_Period,IF(M12="Rehabilitation",IF($C$6="",L14,$C$6),""),IF(AND(M12<=Access_Period,INPUT!P10=""),L14,INPUT!P10)) -> 0.09 | N14: =IF(N12>Access_Period,IF(N12="Rehabilitation",IF($C$6="",M14,$C$6),""),IF(AND(N12<=Access_Period,INPUT!Q10=""),M14,INPUT!Q10)) -> 0.09 | O14: =IF(O12>Access_Period,IF(O12="Rehabilitation",IF($C$6="",N14,$C$6),""),IF(AND(O12<=Access_Period,INPUT!R10=""),N14,INPUT!R10)) -> 0.09 | P14: =IF(P12>Access_Period,IF(P12="Rehabilitation",IF($C$6="",O14,$C$6),""),IF(AND(P12<=Access_Period,INPUT!S10=""),O14,INPUT!S10)) -> 0.09 | Q14: =IF(Q12>Access_Period,IF(Q12="Rehabilitation",IF($C$6="",P14,$C$6),""),IF(AND(Q12<=Access_Period,INPUT!T10=""),P14,INPUT!T10)) -> 0.09 | R14: =IF(R12>Access_Period,IF(R12="Rehabilitation",IF($C$6="",Q14,$C$6),""),IF(AND(R12<=Access_Period,INPUT!U10=""),Q14,INPUT!U10)) -> 0.09 | S14: =IF(S12>Access_Period,IF(S12="Rehabilitation",IF($C$6="",R14,$C$6),""),IF(AND(S12<=Access_Period,INPUT!V10=""),R14,INPUT!V10)) -> 0.09 | T14: =IF(T12>Access_Period,IF(T12="Rehabilitation",IF($C$6="",S14,$C$6),""),IF(AND(T12<=Access_Period,INPUT!W10=""),S14,INPUT!W10)) -> 0.09 | U14: =IF(U12>Access_Period,IF(U12="Rehabilitation",IF($C$6="",T14,$C$6),""),IF(AND(U12<=Access_Period,INPUT!X10=""),T14,INPUT!X10)) -> 0.09 | V14: =IF(V12>Access_Period,IF(V12="Rehabilitation",IF($C$6="",U14,$C$6),""),IF(AND(V12<=Access_Period,INPUT!Y10=""),U14,INPUT!Y10)) -> 0.09 | W14: =IF(W12>Access_Period,IF(W12="Rehabilitation",IF($C$6="",V14,$C$6),""),IF(AND(W12<=Access_Period,INPUT!Z10=""),V14,INPUT!Z10)) -> 0.09 | X14: =IF(X12>Access_Period,IF(X12="Rehabilitation",IF($C$6="",W14,$C$6),""),IF(AND(X12<=Access_Period,INPUT!AA10=""),W14,INPUT!AA10)) -> 0.09 | Y14: =IF(Y12>Access_Period,IF(Y12="Rehabilitation",IF($C$6="",X14,$C$6),""),IF(AND(Y12<=Access_Period,INPUT!AB10=""),X14,INPUT!AB10)) ->  | Z14: =IF(Z12>Access_Period,IF(Z12="Rehabilitation",IF($C$6="",Y14,$C$6),""),IF(AND(Z12<=Access_Period,INPUT!AC10=""),Y14,INPUT!AC10)) ->  | AA14: =IF(AA12>Access_Period,IF(AA12="Rehabilitation",IF($C$6="",Z14,$C$6),""),IF(AND(AA12<=Access_Period,INPUT!AD10=""),Z14,INPUT!AD10)) ->  | AB14: =IF(AB12>Access_Period,IF(AB12="Rehabilitation",IF($C$6="",AA14,$C$6),""),IF(AND(AB12<=Access_Period,INPUT!AE10=""),AA14,INPUT!AE10)) ->  | AC14: =IF(AC12>Access_Period,IF(AC12="Rehabilitation",IF($C$6="",AB14,$C$6),""),IF(AND(AC12<=Access_Period,INPUT!AF10=""),AB14,INPUT!AF10)) ->  | AD14: =IF(AD12>Access_Period,IF(AD12="Rehabilitation",IF($C$6="",AC14,$C$6),""),IF(AND(AD12<=Access_Period,INPUT!AG10=""),AC14,INPUT!AG10)) ->  | AE14: =IF(AE12>Access_Period,IF(AE12="Rehabilitation",IF($C$6="",AD14,$C$6),""),IF(AND(AE12<=Access_Period,INPUT!AH10=""),AD14,INPUT!AH10)) ->  | AF14: =IF(AF12>Access_Period,IF(AF12="Rehabilitation",IF($C$6="",AE14,$C$6),""),IF(AND(AF12<=Access_Period,INPUT!AI10=""),AE14,INPUT!AI10)) ->  | AG14: =IF(AG12>Access_Period,IF(AG12="Rehabilitation",IF($C$6="",AF14,$C$6),""),IF(AND(AG12<=Access_Period,INPUT!AJ10=""),AF14,INPUT!AJ10)) ->  | AH14: =IF(AH12>Access_Period,IF(AH12="Rehabilitation",IF($C$6="",AG14,$C$6),""),IF(AND(AH12<=Access_Period,INPUT!AK10=""),AG14,INPUT!AK10)) -> 
B15: Total land area used by gas company | D15: =IF(D12>Access_Period,IF(D12="Rehabilitation",IF($C$7="",C15,$C$7),""),IF(AND(D12<=Access_Period,INPUT!G13=""),C15,INPUT!G13)) -> 10 | E15: =IF(E12>Access_Period,IF(E12="Rehabilitation",IF($C$7="",D15,$C$7),""),IF(AND(E12<=Access_Period,INPUT!H13=""),D15,INPUT!H13)) -> 5.25 | F15: =IF(F12>Access_Period,IF(F12="Rehabilitation",IF($C$7="",E15,$C$7),""),IF(AND(F12<=Access_Period,INPUT!I13=""),E15,INPUT!I13)) -> 5.25 | G15: =IF(G12>Access_Period,IF(G12="Rehabilitation",IF($C$7="",F15,$C$7),""),IF(AND(G12<=Access_Period,INPUT!J13=""),F15,INPUT!J13)) -> 5.25 | H15: =IF(H12>Access_Period,IF(H12="Rehabilitation",IF($C$7="",G15,$C$7),""),IF(AND(H12<=Access_Period,INPUT!K13=""),G15,INPUT!K13)) -> 5.25 | I15: =IF(I12>Access_Period,IF(I12="Rehabilitation",IF($C$7="",H15,$C$7),""),IF(AND(I12<=Access_Period,INPUT!L13=""),H15,INPUT!L13)) -> 5.25 | J15: =IF(J12>Access_Period,IF(J12="Rehabilitation",IF($C$7="",I15,$C$7),""),IF(AND(J12<=Access_Period,INPUT!M13=""),I15,INPUT!M13)) -> 5.25 | K15: =IF(K12>Access_Period,IF(K12="Rehabilitation",IF($C$7="",J15,$C$7),""),IF(AND(K12<=Access_Period,INPUT!N13=""),J15,INPUT!N13)) -> 5.25 | L15: =IF(L12>Access_Period,IF(L12="Rehabilitation",IF($C$7="",K15,$C$7),""),IF(AND(L12<=Access_Period,INPUT!O13=""),K15,INPUT!O13)) -> 5.25 | M15: =IF(M12>Access_Period,IF(M12="Rehabilitation",IF($C$7="",L15,$C$7),""),IF(AND(M12<=Access_Period,INPUT!P13=""),L15,INPUT!P13)) -> 5.25 | N15: =IF(N12>Access_Period,IF(N12="Rehabilitation",IF($C$7="",M15,$C$7),""),IF(AND(N12<=Access_Period,INPUT!Q13=""),M15,INPUT!Q13)) -> 5.25 | O15: =IF(O12>Access_Period,IF(O12="Rehabilitation",IF($C$7="",N15,$C$7),""),IF(AND(O12<=Access_Period,INPUT!R13=""),N15,INPUT!R13)) -> 5.25 | P15: =IF(P12>Access_Period,IF(P12="Rehabilitation",IF($C$7="",O15,$C$7),""),IF(AND(P12<=Access_Period,INPUT!S13=""),O15,INPUT!S13)) -> 5.25 | Q15: =IF(Q12>Access_Period,IF(Q12="Rehabilitation",IF($C$7="",P15,$C$7),""),IF(AND(Q12<=Access_Period,INPUT!T13=""),P15,INPUT!T13)) -> 5.25 | R15: =IF(R12>Access_Period,IF(R12="Rehabilitation",IF($C$7="",Q15,$C$7),""),IF(AND(R12<=Access_Period,INPUT!U13=""),Q15,INPUT!U13)) -> 5.25 | S15: =IF(S12>Access_Period,IF(S12="Rehabilitation",IF($C$7="",R15,$C$7),""),IF(AND(S12<=Access_Period,INPUT!V13=""),R15,INPUT!V13)) -> 5.25 | T15: =IF(T12>Access_Period,IF(T12="Rehabilitation",IF($C$7="",S15,$C$7),""),IF(AND(T12<=Access_Period,INPUT!W13=""),S15,INPUT!W13)) -> 5.25 | U15: =IF(U12>Access_Period,IF(U12="Rehabilitation",IF($C$7="",T15,$C$7),""),IF(AND(U12<=Access_Period,INPUT!X13=""),T15,INPUT!X13)) -> 5.25 | V15: =IF(V12>Access_Period,IF(V12="Rehabilitation",IF($C$7="",U15,$C$7),""),IF(AND(V12<=Access_Period,INPUT!Y13=""),U15,INPUT!Y13)) -> 5.25 | W15: =IF(W12>Access_Period,IF(W12="Rehabilitation",IF($C$7="",V15,$C$7),""),IF(AND(W12<=Access_Period,INPUT!Z13=""),V15,INPUT!Z13)) -> 5.25 | X15: =IF(X12>Access_Period,IF(X12="Rehabilitation",IF($C$7="",W15,$C$7),""),IF(AND(X12<=Access_Period,INPUT!AA13=""),W15,INPUT!AA13)) -> 5.25 | Y15: =IF(Y12>Access_Period,IF(Y12="Rehabilitation",IF($C$7="",X15,$C$7),""),IF(AND(Y12<=Access_Period,INPUT!AB13=""),X15,INPUT!AB13)) ->  | Z15: =IF(Z12>Access_Period,IF(Z12="Rehabilitation",IF($C$7="",Y15,$C$7),""),IF(AND(Z12<=Access_Period,INPUT!AC13=""),Y15,INPUT!AC13)) ->  | AA15: =IF(AA12>Access_Period,IF(AA12="Rehabilitation",IF($C$7="",Z15,$C$7),""),IF(AND(AA12<=Access_Period,INPUT!AD13=""),Z15,INPUT!AD13)) ->  | AB15: =IF(AB12>Access_Period,IF(AB12="Rehabilitation",IF($C$7="",AA15,$C$7),""),IF(AND(AB12<=Access_Period,INPUT!AE13=""),AA15,INPUT!AE13)) ->  | AC15: =IF(AC12>Access_Period,IF(AC12="Rehabilitation",IF($C$7="",AB15,$C$7),""),IF(AND(AC12<=Access_Period,INPUT!AF13=""),AB15,INPUT!AF13)) ->  | AD15: =IF(AD12>Access_Period,IF(AD12="Rehabilitation",IF($C$7="",AC15,$C$7),""),IF(AND(AD12<=Access_Period,INPUT!AG13=""),AC15,INPUT!AG13)) ->  | AE15: =IF(AE12>Access_Period,IF(AE12="Rehabilitation",IF($C$7="",AD15,$C$7),""),IF(AND(AE12<=Access_Period,INPUT!AH13=""),AD15,INPUT!AH13)) ->  | AF15: =IF(AF12>Access_Period,IF(AF12="Rehabilitation",IF($C$7="",AE15,$C$7),""),IF(AND(AF12<=Access_Period,INPUT!AI13=""),AE15,INPUT!AI13)) ->  | AG15: =IF(AG12>Access_Period,IF(AG12="Rehabilitation",IF($C$7="",AF15,$C$7),""),IF(AND(AG12<=Access_Period,INPUT!AJ13=""),AF15,INPUT!AJ13)) ->  | AH15: =IF(AH12>Access_Period,IF(AH12="Rehabilitation",IF($C$7="",AG15,$C$7),""),IF(AND(AH12<=Access_Period,INPUT!AK13=""),AG15,INPUT!AK13)) -> 
B16: Severance | D16: =IF(D12>Access_Period,IF(D12="Rehabilitation",IF($C$8="",C16,$C$8),""),IF(AND(D12<=Access_Period,INPUT!G15=""),C16,INPUT!G15)) -> 0 | E16: =IF(E12>Access_Period,IF(E12="Rehabilitation",IF($C$8="",D16,$C$8),""),IF(AND(E12<=Access_Period,INPUT!H15=""),D16,INPUT!H15)) -> 0 | F16: =IF(F12>Access_Period,IF(F12="Rehabilitation",IF($C$8="",E16,$C$8),""),IF(AND(F12<=Access_Period,INPUT!I15=""),E16,INPUT!I15)) -> 0 | G16: =IF(G12>Access_Period,IF(G12="Rehabilitation",IF($C$8="",F16,$C$8),""),IF(AND(G12<=Access_Period,INPUT!J15=""),F16,INPUT!J15)) -> 0 | H16: =IF(H12>Access_Period,IF(H12="Rehabilitation",IF($C$8="",G16,$C$8),""),IF(AND(H12<=Access_Period,INPUT!K15=""),G16,INPUT!K15)) -> 0 | I16: =IF(I12>Access_Period,IF(I12="Rehabilitation",IF($C$8="",H16,$C$8),""),IF(AND(I12<=Access_Period,INPUT!L15=""),H16,INPUT!L15)) -> 0 | J16: =IF(J12>Access_Period,IF(J12="Rehabilitation",IF($C$8="",I16,$C$8),""),IF(AND(J12<=Access_Period,INPUT!M15=""),I16,INPUT!M15)) -> 0 | K16: =IF(K12>Access_Period,IF(K12="Rehabilitation",IF($C$8="",J16,$C$8),""),IF(AND(K12<=Access_Period,INPUT!N15=""),J16,INPUT!N15)) -> 0 | L16: =IF(L12>Access_Period,IF(L12="Rehabilitation",IF($C$8="",K16,$C$8),""),IF(AND(L12<=Access_Period,INPUT!O15=""),K16,INPUT!O15)) -> 0 | M16: =IF(M12>Access_Period,IF(M12="Rehabilitation",IF($C$8="",L16,$C$8),""),IF(AND(M12<=Access_Period,INPUT!P15=""),L16,INPUT!P15)) -> 0 | N16: =IF(N12>Access_Period,IF(N12="Rehabilitation",IF($C$8="",M16,$C$8),""),IF(AND(N12<=Access_Period,INPUT!Q15=""),M16,INPUT!Q15)) -> 0 | O16: =IF(O12>Access_Period,IF(O12="Rehabilitation",IF($C$8="",N16,$C$8),""),IF(AND(O12<=Access_Period,INPUT!R15=""),N16,INPUT!R15)) -> 0 | P16: =IF(P12>Access_Period,IF(P12="Rehabilitation",IF($C$8="",O16,$C$8),""),IF(AND(P12<=Access_Period,INPUT!S15=""),O16,INPUT!S15)) -> 0 | Q16: =IF(Q12>Access_Period,IF(Q12="Rehabilitation",IF($C$8="",P16,$C$8),""),IF(AND(Q12<=Access_Period,INPUT!T15=""),P16,INPUT!T15)) -> 0 | R16: =IF(R12>Access_Period,IF(R12="Rehabilitation",IF($C$8="",Q16,$C$8),""),IF(AND(R12<=Access_Period,INPUT!U15=""),Q16,INPUT!U15)) -> 0 | S16: =IF(S12>Access_Period,IF(S12="Rehabilitation",IF($C$8="",R16,$C$8),""),IF(AND(S12<=Access_Period,INPUT!V15=""),R16,INPUT!V15)) -> 0 | T16: =IF(T12>Access_Period,IF(T12="Rehabilitation",IF($C$8="",S16,$C$8),""),IF(AND(T12<=Access_Period,INPUT!W15=""),S16,INPUT!W15)) -> 0 | U16: =IF(U12>Access_Period,IF(U12="Rehabilitation",IF($C$8="",T16,$C$8),""),IF(AND(U12<=Access_Period,INPUT!X15=""),T16,INPUT!X15)) -> 0 | V16: =IF(V12>Access_Period,IF(V12="Rehabilitation",IF($C$8="",U16,$C$8),""),IF(AND(V12<=Access_Period,INPUT!Y15=""),U16,INPUT!Y15)) -> 0 | W16: =IF(W12>Access_Period,IF(W12="Rehabilitation",IF($C$8="",V16,$C$8),""),IF(AND(W12<=Access_Period,INPUT!Z15=""),V16,INPUT!Z15)) -> 0 | X16: =IF(X12>Access_Period,IF(X12="Rehabilitation",IF($C$8="",W16,$C$8),""),IF(AND(X12<=Access_Period,INPUT!AA15=""),W16,INPUT!AA15)) -> 0 | Y16: =IF(Y12>Access_Period,IF(Y12="Rehabilitation",IF($C$8="",X16,$C$8),""),IF(AND(Y12<=Access_Period,INPUT!AB15=""),X16,INPUT!AB15)) ->  | Z16: =IF(Z12>Access_Period,IF(Z12="Rehabilitation",IF($C$8="",Y16,$C$8),""),IF(AND(Z12<=Access_Period,INPUT!AC15=""),Y16,INPUT!AC15)) ->  | AA16: =IF(AA12>Access_Period,IF(AA12="Rehabilitation",IF($C$8="",Z16,$C$8),""),IF(AND(AA12<=Access_Period,INPUT!AD15=""),Z16,INPUT!AD15)) ->  | AB16: =IF(AB12>Access_Period,IF(AB12="Rehabilitation",IF($C$8="",AA16,$C$8),""),IF(AND(AB12<=Access_Period,INPUT!AE15=""),AA16,INPUT!AE15)) ->  | AC16: =IF(AC12>Access_Period,IF(AC12="Rehabilitation",IF($C$8="",AB16,$C$8),""),IF(AND(AC12<=Access_Period,INPUT!AF15=""),AB16,INPUT!AF15)) ->  | AD16: =IF(AD12>Access_Period,IF(AD12="Rehabilitation",IF($C$8="",AC16,$C$8),""),IF(AND(AD12<=Access_Period,INPUT!AG15=""),AC16,INPUT!AG15)) ->  | AE16: =IF(AE12>Access_Period,IF(AE12="Rehabilitation",IF($C$8="",AD16,$C$8),""),IF(AND(AE12<=Access_Period,INPUT!AH15=""),AD16,INPUT!AH15)) ->  | AF16: =IF(AF12>Access_Period,IF(AF12="Rehabilitation",IF($C$8="",AE16,$C$8),""),IF(AND(AF12<=Access_Period,INPUT!AI15=""),AE16,INPUT!AI15)) ->  | AG16: =IF(AG12>Access_Period,IF(AG12="Rehabilitation",IF($C$8="",AF16,$C$8),""),IF(AND(AG12<=Access_Period,INPUT!AJ15=""),AF16,INPUT!AJ15)) ->  | AH16: =IF(AH12>Access_Period,IF(AH12="Rehabilitation",IF($C$8="",AG16,$C$8),""),IF(AND(AH12<=Access_Period,INPUT!AK15=""),AG16,INPUT!AK15)) -> 
B17: Injurious affections | D17: =IF(D12>Access_Period,IF(D12="Rehabilitation",IF($C$9="",C17,$C$9),""),IF(AND(D12<=Access_Period,INPUT!G16=""),C17,INPUT!G16)) -> 0.2 | E17: =IF(E12>Access_Period,IF(E12="Rehabilitation",IF($C$9="",D17,$C$9),""),IF(AND(E12<=Access_Period,INPUT!H16=""),D17,INPUT!H16)) -> 0.1 | F17: =IF(F12>Access_Period,IF(F12="Rehabilitation",IF($C$9="",E17,$C$9),""),IF(AND(F12<=Access_Period,INPUT!I16=""),E17,INPUT!I16)) -> 0.1 | G17: =IF(G12>Access_Period,IF(G12="Rehabilitation",IF($C$9="",F17,$C$9),""),IF(AND(G12<=Access_Period,INPUT!J16=""),F17,INPUT!J16)) -> 0.1 | H17: =IF(H12>Access_Period,IF(H12="Rehabilitation",IF($C$9="",G17,$C$9),""),IF(AND(H12<=Access_Period,INPUT!K16=""),G17,INPUT!K16)) -> 0.1 | I17: =IF(I12>Access_Period,IF(I12="Rehabilitation",IF($C$9="",H17,$C$9),""),IF(AND(I12<=Access_Period,INPUT!L16=""),H17,INPUT!L16)) -> 0.1 | J17: =IF(J12>Access_Period,IF(J12="Rehabilitation",IF($C$9="",I17,$C$9),""),IF(AND(J12<=Access_Period,INPUT!M16=""),I17,INPUT!M16)) -> 0.1 | K17: =IF(K12>Access_Period,IF(K12="Rehabilitation",IF($C$9="",J17,$C$9),""),IF(AND(K12<=Access_Period,INPUT!N16=""),J17,INPUT!N16)) -> 0.1 | L17: =IF(L12>Access_Period,IF(L12="Rehabilitation",IF($C$9="",K17,$C$9),""),IF(AND(L12<=Access_Period,INPUT!O16=""),K17,INPUT!O16)) -> 0.1 | M17: =IF(M12>Access_Period,IF(M12="Rehabilitation",IF($C$9="",L17,$C$9),""),IF(AND(M12<=Access_Period,INPUT!P16=""),L17,INPUT!P16)) -> 0.1 | N17: =IF(N12>Access_Period,IF(N12="Rehabilitation",IF($C$9="",M17,$C$9),""),IF(AND(N12<=Access_Period,INPUT!Q16=""),M17,INPUT!Q16)) -> 0.1 | O17: =IF(O12>Access_Period,IF(O12="Rehabilitation",IF($C$9="",N17,$C$9),""),IF(AND(O12<=Access_Period,INPUT!R16=""),N17,INPUT!R16)) -> 0.1 | P17: =IF(P12>Access_Period,IF(P12="Rehabilitation",IF($C$9="",O17,$C$9),""),IF(AND(P12<=Access_Period,INPUT!S16=""),O17,INPUT!S16)) -> 0.1 | Q17: =IF(Q12>Access_Period,IF(Q12="Rehabilitation",IF($C$9="",P17,$C$9),""),IF(AND(Q12<=Access_Period,INPUT!T16=""),P17,INPUT!T16)) -> 0.1 | R17: =IF(R12>Access_Period,IF(R12="Rehabilitation",IF($C$9="",Q17,$C$9),""),IF(AND(R12<=Access_Period,INPUT!U16=""),Q17,INPUT!U16)) -> 0.1 | S17: =IF(S12>Access_Period,IF(S12="Rehabilitation",IF($C$9="",R17,$C$9),""),IF(AND(S12<=Access_Period,INPUT!V16=""),R17,INPUT!V16)) -> 0.1 | T17: =IF(T12>Access_Period,IF(T12="Rehabilitation",IF($C$9="",S17,$C$9),""),IF(AND(T12<=Access_Period,INPUT!W16=""),S17,INPUT!W16)) -> 0.1 | U17: =IF(U12>Access_Period,IF(U12="Rehabilitation",IF($C$9="",T17,$C$9),""),IF(AND(U12<=Access_Period,INPUT!X16=""),T17,INPUT!X16)) -> 0.1 | V17: =IF(V12>Access_Period,IF(V12="Rehabilitation",IF($C$9="",U17,$C$9),""),IF(AND(V12<=Access_Period,INPUT!Y16=""),U17,INPUT!Y16)) -> 0.1 | W17: =IF(W12>Access_Period,IF(W12="Rehabilitation",IF($C$9="",V17,$C$9),""),IF(AND(W12<=Access_Period,INPUT!Z16=""),V17,INPUT!Z16)) -> 0.1 | X17: =IF(X12>Access_Period,IF(X12="Rehabilitation",IF($C$9="",W17,$C$9),""),IF(AND(X12<=Access_Period,INPUT!AA16=""),W17,INPUT!AA16)) -> 0.1 | Y17: =IF(Y12>Access_Period,IF(Y12="Rehabilitation",IF($C$9="",X17,$C$9),""),IF(AND(Y12<=Access_Period,INPUT!AB16=""),X17,INPUT!AB16)) ->  | Z17: =IF(Z12>Access_Period,IF(Z12="Rehabilitation",IF($C$9="",Y17,$C$9),""),IF(AND(Z12<=Access_Period,INPUT!AC16=""),Y17,INPUT!AC16)) ->  | AA17: =IF(AA12>Access_Period,IF(AA12="Rehabilitation",IF($C$9="",Z17,$C$9),""),IF(AND(AA12<=Access_Period,INPUT!AD16=""),Z17,INPUT!AD16)) ->  | AB17: =IF(AB12>Access_Period,IF(AB12="Rehabilitation",IF($C$9="",AA17,$C$9),""),IF(AND(AB12<=Access_Period,INPUT!AE16=""),AA17,INPUT!AE16)) ->  | AC17: =IF(AC12>Access_Period,IF(AC12="Rehabilitation",IF($C$9="",AB17,$C$9),""),IF(AND(AC12<=Access_Period,INPUT!AF16=""),AB17,INPUT!AF16)) ->  | AD17: =IF(AD12>Access_Period,IF(AD12="Rehabilitation",IF($C$9="",AC17,$C$9),""),IF(AND(AD12<=Access_Period,INPUT!AG16=""),AC17,INPUT!AG16)) ->  | AE17: =IF(AE12>Access_Period,IF(AE12="Rehabilitation",IF($C$9="",AD17,$C$9),""),IF(AND(AE12<=Access_Period,INPUT!AH16=""),AD17,INPUT!AH16)) ->  | AF17: =IF(AF12>Access_Period,IF(AF12="Rehabilitation",IF($C$9="",AE17,$C$9),""),IF(AND(AF12<=Access_Period,INPUT!AI16=""),AE17,INPUT!AI16)) ->  | AG17: =IF(AG12>Access_Period,IF(AG12="Rehabilitation",IF($C$9="",AF17,$C$9),""),IF(AND(AG12<=Access_Period,INPUT!AJ16=""),AF17,INPUT!AJ16)) ->  | AH17: =IF(AH12>Access_Period,IF(AH12="Rehabilitation",IF($C$9="",AG17,$C$9),""),IF(AND(AH12<=Access_Period,INPUT!AK16=""),AG17,INPUT!AK16)) -> 
B18: =INPUT!C32 -> Gas company's statutory annual royalty payment in nominal terms (ie, including inflation) | D18: =IF(OR(D12<Production_Year,D12>Access_Period),"",IF(AND(D12>Production_Year,INPUT!G32=""),C18*(1+Inflation),INPUT!G32)) ->  | E18: =IF(OR(E12<Production_Year,E12>Access_Period),"",IF(AND(E12>Production_Year,INPUT!H32=""),D18*(1+Inflation),INPUT!H32)) ->  | F18: =IF(OR(F12<Production_Year,F12>Access_Period),"",IF(AND(F12>Production_Year,INPUT!I32=""),E18*(1+Inflation),INPUT!I32)) ->  | G18: =IF(OR(G12<Production_Year,G12>Access_Period),"",IF(AND(G12>Production_Year,INPUT!J32=""),F18*(1+Inflation),INPUT!J32)) -> 1500000 | H18: =IF(OR(H12<Production_Year,H12>Access_Period),"",IF(AND(H12>Production_Year,INPUT!K32=""),G18*(1+Inflation),INPUT!K32)) -> 1537500 | I18: =IF(OR(I12<Production_Year,I12>Access_Period),"",IF(AND(I12>Production_Year,INPUT!L32=""),H18*(1+Inflation),INPUT!L32)) -> 1575937.5 | J18: =IF(OR(J12<Production_Year,J12>Access_Period),"",IF(AND(J12>Production_Year,INPUT!M32=""),I18*(1+Inflation),INPUT!M32)) -> 1615335.937 | K18: =IF(OR(K12<Production_Year,K12>Access_Period),"",IF(AND(K12>Production_Year,INPUT!N32=""),J18*(1+Inflation),INPUT!N32)) -> 1655719.336 | L18: =IF(OR(L12<Production_Year,L12>Access_Period),"",IF(AND(L12>Production_Year,INPUT!O32=""),K18*(1+Inflation),INPUT!O32)) -> 1697112.319 | M18: =IF(OR(M12<Production_Year,M12>Access_Period),"",IF(AND(M12>Production_Year,INPUT!P32=""),L18*(1+Inflation),INPUT!P32)) -> 1739540.127 | N18: =IF(OR(N12<Production_Year,N12>Access_Period),"",IF(AND(N12>Production_Year,INPUT!Q32=""),M18*(1+Inflation),INPUT!Q32)) -> 1783028.631 | O18: =IF(OR(O12<Production_Year,O12>Access_Period),"",IF(AND(O12>Production_Year,INPUT!R32=""),N18*(1+Inflation),INPUT!R32)) -> 1827604.346 | P18: =IF(OR(P12<Production_Year,P12>Access_Period),"",IF(AND(P12>Production_Year,INPUT!S32=""),O18*(1+Inflation),INPUT!S32)) -> 1873294.455 | Q18: =IF(OR(Q12<Production_Year,Q12>Access_Period),"",IF(AND(Q12>Production_Year,INPUT!T32=""),P18*(1+Inflation),INPUT!T32)) -> 1920126.816 | R18: =IF(OR(R12<Production_Year,R12>Access_Period),"",IF(AND(R12>Production_Year,INPUT!U32=""),Q18*(1+Inflation),INPUT!U32)) -> 1968129.987 | S18: =IF(OR(S12<Production_Year,S12>Access_Period),"",IF(AND(S12>Production_Year,INPUT!V32=""),R18*(1+Inflation),INPUT!V32)) -> 2017333.236 | T18: =IF(OR(T12<Production_Year,T12>Access_Period),"",IF(AND(T12>Production_Year,INPUT!W32=""),S18*(1+Inflation),INPUT!W32)) -> 2067766.567 | U18: =IF(OR(U12<Production_Year,U12>Access_Period),"",IF(AND(U12>Production_Year,INPUT!X32=""),T18*(1+Inflation),INPUT!X32)) -> 2119460.731 | V18: =IF(OR(V12<Production_Year,V12>Access_Period),"",IF(AND(V12>Production_Year,INPUT!Y32=""),U18*(1+Inflation),INPUT!Y32)) -> 2172447.25 | W18: =IF(OR(W12<Production_Year,W12>Access_Period),"",IF(AND(W12>Production_Year,INPUT!Z32=""),V18*(1+Inflation),INPUT!Z32)) -> 2226758.431 | X18: =IF(OR(X12<Production_Year,X12>Access_Period),"",IF(AND(X12>Production_Year,INPUT!AA32=""),W18*(1+Inflation),INPUT!AA32)) ->  | Y18: =IF(OR(Y12<Production_Year,Y12>Access_Period),"",IF(AND(Y12>Production_Year,INPUT!AB32=""),X18*(1+Inflation),INPUT!AB32)) ->  | Z18: =IF(OR(Z12<Production_Year,Z12>Access_Period),"",IF(AND(Z12>Production_Year,INPUT!AC32=""),Y18*(1+Inflation),INPUT!AC32)) ->  | AA18: =IF(OR(AA12<Production_Year,AA12>Access_Period),"",IF(AND(AA12>Production_Year,INPUT!AD32=""),Z18*(1+Inflation),INPUT!AD32)) ->  | AB18: =IF(OR(AB12<Production_Year,AB12>Access_Period),"",IF(AND(AB12>Production_Year,INPUT!AE32=""),AA18*(1+Inflation),INPUT!AE32)) ->  | AC18: =IF(OR(AC12<Production_Year,AC12>Access_Period),"",IF(AND(AC12>Production_Year,INPUT!AF32=""),AB18*(1+Inflation),INPUT!AF32)) ->  | AD18: =IF(OR(AD12<Production_Year,AD12>Access_Period),"",IF(AND(AD12>Production_Year,INPUT!AG32=""),AC18*(1+Inflation),INPUT!AG32)) ->  | AE18: =IF(OR(AE12<Production_Year,AE12>Access_Period),"",IF(AND(AE12>Production_Year,INPUT!AH32=""),AD18*(1+Inflation),INPUT!AH32)) ->  | AF18: =IF(OR(AF12<Production_Year,AF12>Access_Period),"",IF(AND(AF12>Production_Year,INPUT!AI32=""),AE18*(1+Inflation),INPUT!AI32)) ->  | AG18: =IF(OR(AG12<Production_Year,AG12>Access_Period),"",IF(AND(AG12>Production_Year,INPUT!AJ32=""),AF18*(1+Inflation),INPUT!AJ32)) ->  | AH18: =IF(OR(AH12<Production_Year,AH12>Access_Period),"",IF(AND(AH12>Production_Year,INPUT!AK32=""),AG18*(1+Inflation),INPUT!AK32)) -> 
B19: =INPUT!C33 -> % of royalty gas company contributes to incentive fund | D19: =IF(OR(D12<Production_Year,D12>Access_Period),"",IF(AND(D12>Production_Year,INPUT!G33=""),C19,INPUT!G33)) ->  | E19: =IF(OR(E12<Production_Year,E12>Access_Period),"",IF(AND(E12>Production_Year,INPUT!H33=""),D19,INPUT!H33)) ->  | F19: =IF(OR(F12<Production_Year,F12>Access_Period),"",IF(AND(F12>Production_Year,INPUT!I33=""),E19,INPUT!I33)) ->  | G19: =IF(OR(G12<Production_Year,G12>Access_Period),"",IF(AND(G12>Production_Year,INPUT!J33=""),F19,INPUT!J33)) -> 5 | H19: =IF(OR(H12<Production_Year,H12>Access_Period),"",IF(AND(H12>Production_Year,INPUT!K33=""),G19,INPUT!K33)) -> 5 | I19: =IF(OR(I12<Production_Year,I12>Access_Period),"",IF(AND(I12>Production_Year,INPUT!L33=""),H19,INPUT!L33)) -> 5 | J19: =IF(OR(J12<Production_Year,J12>Access_Period),"",IF(AND(J12>Production_Year,INPUT!M33=""),I19,INPUT!M33)) -> 5 | K19: =IF(OR(K12<Production_Year,K12>Access_Period),"",IF(AND(K12>Production_Year,INPUT!N33=""),J19,INPUT!N33)) -> 5 | L19: =IF(OR(L12<Production_Year,L12>Access_Period),"",IF(AND(L12>Production_Year,INPUT!O33=""),K19,INPUT!O33)) -> 5 | M19: =IF(OR(M12<Production_Year,M12>Access_Period),"",IF(AND(M12>Production_Year,INPUT!P33=""),L19,INPUT!P33)) -> 5 | N19: =IF(OR(N12<Production_Year,N12>Access_Period),"",IF(AND(N12>Production_Year,INPUT!Q33=""),M19,INPUT!Q33)) -> 5 | O19: =IF(OR(O12<Production_Year,O12>Access_Period),"",IF(AND(O12>Production_Year,INPUT!R33=""),N19,INPUT!R33)) -> 5 | P19: =IF(OR(P12<Production_Year,P12>Access_Period),"",IF(AND(P12>Production_Year,INPUT!S33=""),O19,INPUT!S33)) -> 5 | Q19: =IF(OR(Q12<Production_Year,Q12>Access_Period),"",IF(AND(Q12>Production_Year,INPUT!T33=""),P19,INPUT!T33)) -> 5 | R19: =IF(OR(R12<Production_Year,R12>Access_Period),"",IF(AND(R12>Production_Year,INPUT!U33=""),Q19,INPUT!U33)) -> 5 | S19: =IF(OR(S12<Production_Year,S12>Access_Period),"",IF(AND(S12>Production_Year,INPUT!V33=""),R19,INPUT!V33)) -> 5 | T19: =IF(OR(T12<Production_Year,T12>Access_Period),"",IF(AND(T12>Production_Year,INPUT!W33=""),S19,INPUT!W33)) -> 5 | U19: =IF(OR(U12<Production_Year,U12>Access_Period),"",IF(AND(U12>Production_Year,INPUT!X33=""),T19,INPUT!X33)) -> 5 | V19: =IF(OR(V12<Production_Year,V12>Access_Period),"",IF(AND(V12>Production_Year,INPUT!Y33=""),U19,INPUT!Y33)) -> 5 | W19: =IF(OR(W12<Production_Year,W12>Access_Period),"",IF(AND(W12>Production_Year,INPUT!Z33=""),V19,INPUT!Z33)) -> 5 | X19: =IF(OR(X12<Production_Year,X12>Access_Period),"",IF(AND(X12>Production_Year,INPUT!AA33=""),W19,INPUT!AA33)) ->  | Y19: =IF(OR(Y12<Production_Year,Y12>Access_Period),"",IF(AND(Y12>Production_Year,INPUT!AB33=""),X19,INPUT!AB33)) ->  | Z19: =IF(OR(Z12<Production_Year,Z12>Access_Period),"",IF(AND(Z12>Production_Year,INPUT!AC33=""),Y19,INPUT!AC33)) ->  | AA19: =IF(OR(AA12<Production_Year,AA12>Access_Period),"",IF(AND(AA12>Production_Year,INPUT!AD33=""),Z19,INPUT!AD33)) ->  | AB19: =IF(OR(AB12<Production_Year,AB12>Access_Period),"",IF(AND(AB12>Production_Year,INPUT!AE33=""),AA19,INPUT!AE33)) ->  | AC19: =IF(OR(AC12<Production_Year,AC12>Access_Period),"",IF(AND(AC12>Production_Year,INPUT!AF33=""),AB19,INPUT!AF33)) ->  | AD19: =IF(OR(AD12<Production_Year,AD12>Access_Period),"",IF(AND(AD12>Production_Year,INPUT!AG33=""),AC19,INPUT!AG33)) ->  | AE19: =IF(OR(AE12<Production_Year,AE12>Access_Period),"",IF(AND(AE12>Production_Year,INPUT!AH33=""),AD19,INPUT!AH33)) ->  | AF19: =IF(OR(AF12<Production_Year,AF12>Access_Period),"",IF(AND(AF12>Production_Year,INPUT!AI33=""),AE19,INPUT!AI33)) ->  | AG19: =IF(OR(AG12<Production_Year,AG12>Access_Period),"",IF(AND(AG12>Production_Year,INPUT!AJ33=""),AF19,INPUT!AJ33)) ->  | AH19: =IF(OR(AH12<Production_Year,AH12>Access_Period),"",IF(AND(AH12>Production_Year,INPUT!AK33=""),AG19,INPUT!AK33)) -> 
B20: =INPUT!C34 -> Total licence area for production | D20: =IF(OR(D12<Production_Year,D12>Access_Period),"",IF(AND(D12>Production_Year,INPUT!G34=""),C20,INPUT!G34)) ->  | E20: =IF(OR(E12<Production_Year,E12>Access_Period),"",IF(AND(E12>Production_Year,INPUT!H34=""),D20,INPUT!H34)) ->  | F20: =IF(OR(F12<Production_Year,F12>Access_Period),"",IF(AND(F12>Production_Year,INPUT!I34=""),E20,INPUT!I34)) ->  | G20: =IF(OR(G12<Production_Year,G12>Access_Period),"",IF(AND(G12>Production_Year,INPUT!J34=""),F20,INPUT!J34)) -> 22 | H20: =IF(OR(H12<Production_Year,H12>Access_Period),"",IF(AND(H12>Production_Year,INPUT!K34=""),G20,INPUT!K34)) -> 22 | I20: =IF(OR(I12<Production_Year,I12>Access_Period),"",IF(AND(I12>Production_Year,INPUT!L34=""),H20,INPUT!L34)) -> 22 | J20: =IF(OR(J12<Production_Year,J12>Access_Period),"",IF(AND(J12>Production_Year,INPUT!M34=""),I20,INPUT!M34)) -> 22 | K20: =IF(OR(K12<Production_Year,K12>Access_Period),"",IF(AND(K12>Production_Year,INPUT!N34=""),J20,INPUT!N34)) -> 22 | L20: =IF(OR(L12<Production_Year,L12>Access_Period),"",IF(AND(L12>Production_Year,INPUT!O34=""),K20,INPUT!O34)) -> 22 | M20: =IF(OR(M12<Production_Year,M12>Access_Period),"",IF(AND(M12>Production_Year,INPUT!P34=""),L20,INPUT!P34)) -> 22 | N20: =IF(OR(N12<Production_Year,N12>Access_Period),"",IF(AND(N12>Production_Year,INPUT!Q34=""),M20,INPUT!Q34)) -> 22 | O20: =IF(OR(O12<Production_Year,O12>Access_Period),"",IF(AND(O12>Production_Year,INPUT!R34=""),N20,INPUT!R34)) -> 22 | P20: =IF(OR(P12<Production_Year,P12>Access_Period),"",IF(AND(P12>Production_Year,INPUT!S34=""),O20,INPUT!S34)) -> 22 | Q20: =IF(OR(Q12<Production_Year,Q12>Access_Period),"",IF(AND(Q12>Production_Year,INPUT!T34=""),P20,INPUT!T34)) -> 22 | R20: =IF(OR(R12<Production_Year,R12>Access_Period),"",IF(AND(R12>Production_Year,INPUT!U34=""),Q20,INPUT!U34)) -> 22 | S20: =IF(OR(S12<Production_Year,S12>Access_Period),"",IF(AND(S12>Production_Year,INPUT!V34=""),R20,INPUT!V34)) -> 22 | T20: =IF(OR(T12<Production_Year,T12>Access_Period),"",IF(AND(T12>Production_Year,INPUT!W34=""),S20,INPUT!W34)) -> 22 | U20: =IF(OR(U12<Production_Year,U12>Access_Period),"",IF(AND(U12>Production_Year,INPUT!X34=""),T20,INPUT!X34)) -> 22 | V20: =IF(OR(V12<Production_Year,V12>Access_Period),"",IF(AND(V12>Production_Year,INPUT!Y34=""),U20,INPUT!Y34)) -> 22 | W20: =IF(OR(W12<Production_Year,W12>Access_Period),"",IF(AND(W12>Production_Year,INPUT!Z34=""),V20,INPUT!Z34)) -> 22 | X20: =IF(OR(X12<Production_Year,X12>Access_Period),"",IF(AND(X12>Production_Year,INPUT!AA34=""),W20,INPUT!AA34)) ->  | Y20: =IF(OR(Y12<Production_Year,Y12>Access_Period),"",IF(AND(Y12>Production_Year,INPUT!AB34=""),X20,INPUT!AB34)) ->  | Z20: =IF(OR(Z12<Production_Year,Z12>Access_Period),"",IF(AND(Z12>Production_Year,INPUT!AC34=""),Y20,INPUT!AC34)) ->  | AA20: =IF(OR(AA12<Production_Year,AA12>Access_Period),"",IF(AND(AA12>Production_Year,INPUT!AD34=""),Z20,INPUT!AD34)) ->  | AB20: =IF(OR(AB12<Production_Year,AB12>Access_Period),"",IF(AND(AB12>Production_Year,INPUT!AE34=""),AA20,INPUT!AE34)) ->  | AC20: =IF(OR(AC12<Production_Year,AC12>Access_Period),"",IF(AND(AC12>Production_Year,INPUT!AF34=""),AB20,INPUT!AF34)) ->  | AD20: =IF(OR(AD12<Production_Year,AD12>Access_Period),"",IF(AND(AD12>Production_Year,INPUT!AG34=""),AC20,INPUT!AG34)) ->  | AE20: =IF(OR(AE12<Production_Year,AE12>Access_Period),"",IF(AND(AE12>Production_Year,INPUT!AH34=""),AD20,INPUT!AH34)) ->  | AF20: =IF(OR(AF12<Production_Year,AF12>Access_Period),"",IF(AND(AF12>Production_Year,INPUT!AI34=""),AE20,INPUT!AI34)) ->  | AG20: =IF(OR(AG12<Production_Year,AG12>Access_Period),"",IF(AND(AG12>Production_Year,INPUT!AJ34=""),AF20,INPUT!AJ34)) ->  | AH20: =IF(OR(AH12<Production_Year,AH12>Access_Period),"",IF(AND(AH12>Production_Year,INPUT!AK34=""),AG20,INPUT!AK34)) -> 
B22: PART A. Annual Compensation Payments
B23: Beginning of Year | D23: =D12 -> 1 | E23: =E12 -> 2 | F23: 3 | G23: 4 | H23: 5 | I23: 6 | J23: 7 | K23: 8 | L23: 9 | M23: 10 | N23: 11 | O23: 12 | P23: 13 | Q23: 14 | R23: 15 | S23: 16 | T23: 17 | U23: 18 | V23: 19 | W23: 20 | X23: Rehabilitation
B24: Rent for land | D24: =IF(OR(D$12<=Access_Period,D$12="Rehabilitation"),D15*D13*D14,"") -> 12000 | E24: 6457.5 | F24: 6618.9375 | G24: 6784.410937 | H24: 8505 | I24: 8717.625 | J24: 8935.565625 | K24: 9158.954766 | L24: 9387.928635 | M24: 9622.626851 | N24: 9863.192522 | O24: 10109.77233 | P24: 10362.51664 | Q24: 10621.57956 | R24: 10887.11905 | S24: 11159.29702 | T24: 11438.27945 | U24: 11724.23644 | V24: 12017.34235 | W24: 12317.77591 | X24: 12317.77591
B25: Payment for severance | D25: =IF(OR(D$12<=Access_Period,D$12="Rehabilitation"),(Total_Landholding-D15)*D13*D14*D16,"") -> 0 | E25: 0 | F25: 0 | G25: 0 | H25: 0 | I25: 0 | J25: 0 | K25: 0 | L25: 0 | M25: 0 | N25: 0 | O25: 0 | P25: 0 | Q25: 0 | R25: 0 | S25: 0 | T25: 0 | U25: 0 | V25: 0 | W25: 0 | X25: 0
B26: Payment for injurious affections | D26: =IF(OR(D$12<=Access_Period,D$12="Rehabilitation"),(Total_Landholding-D15)*D13*D14*D17,"") -> 45600 | E26: 23954.25 | F26: 24553.10625 | G26: 25166.93391 | H26: 31549.5 | I26: 32338.2375 | J26: 33146.69344 | K26: 33975.36077 | L26: 34824.74479 | M26: 35695.36341 | N26: 36587.7475 | O26: 37502.44119 | P26: 38440.00221 | Q26: 39401.00227 | R26: 40386.02733 | S26: 41395.67801 | T26: 42430.56996 | U26: 43491.33421 | V26: 44578.61756 | W26: 45693.083 | X26: 45693.083
B27: Payment for landholder time | D27: =IF(D$12<=Access_Period,Initial_Time_Spent*Value_of_Time+Advice_Cost,"") -> 47500 | E27: =IF(E$12<=Access_Period,Ongoing_Time_Spent*Value_of_Time*(1+Inflation)^(E12-$D$12),"") -> 2562.5 | F27: 2626.5625 | G27: 2692.226562 | H27: 2759.532227 | I27: 2828.520532 | J27: 2899.233546 | K27: 2971.714384 | L27: 3046.007244 | M27: 3122.157425 | N27: 3200.21136 | O27: 3280.216645 | P27: 3362.222061 | Q27: 3446.277612 | R27: 3532.434552 | S27: 3620.745416 | T27: 3711.264052 | U27: 3804.045653 | V27: 3899.146794 | W27: 3996.625464
B28: Total Annual Payment ($Nominal) | D28: =IF(D$12<=Access_Period,SUM(D24:D27),IF(D$12="Rehabilitation",SUM(D24:D27)*INPUT!$E$17/52,"")) -> 105100 | E28: =IF(E$12<=Access_Period,SUM(E24:E27),IF(E$12="Rehabilitation",SUM(E24:E27)*INPUT!$E$17/52,"")) -> 32974.25 | F28: =IF(F$12<=Access_Period,SUM(F24:F27),IF(F$12="Rehabilitation",SUM(F24:F27)*INPUT!$E$17/52,"")) -> 33798.60625 | G28: =IF(G$12<=Access_Period,SUM(G24:G27),IF(G$12="Rehabilitation",SUM(G24:G27)*INPUT!$E$17/52,"")) -> 34643.57141 | H28: =IF(H$12<=Access_Period,SUM(H24:H27),IF(H$12="Rehabilitation",SUM(H24:H27)*INPUT!$E$17/52,"")) -> 42814.03223 | I28: =IF(I$12<=Access_Period,SUM(I24:I27),IF(I$12="Rehabilitation",SUM(I24:I27)*INPUT!$E$17/52,"")) -> 43884.38303 | J28: =IF(J$12<=Access_Period,SUM(J24:J27),IF(J$12="Rehabilitation",SUM(J24:J27)*INPUT!$E$17/52,"")) -> 44981.49261 | K28: =IF(K$12<=Access_Period,SUM(K24:K27),IF(K$12="Rehabilitation",SUM(K24:K27)*INPUT!$E$17/52,"")) -> 46106.02992 | L28: =IF(L$12<=Access_Period,SUM(L24:L27),IF(L$12="Rehabilitation",SUM(L24:L27)*INPUT!$E$17/52,"")) -> 47258.68067 | M28: =IF(M$12<=Access_Period,SUM(M24:M27),IF(M$12="Rehabilitation",SUM(M24:M27)*INPUT!$E$17/52,"")) -> 48440.14769 | N28: =IF(N$12<=Access_Period,SUM(N24:N27),IF(N$12="Rehabilitation",SUM(N24:N27)*INPUT!$E$17/52,"")) -> 49651.15138 | O28: =IF(O$12<=Access_Period,SUM(O24:O27),IF(O$12="Rehabilitation",SUM(O24:O27)*INPUT!$E$17/52,"")) -> 50892.43016 | P28: =IF(P$12<=Access_Period,SUM(P24:P27),IF(P$12="Rehabilitation",SUM(P24:P27)*INPUT!$E$17/52,"")) -> 52164.74092 | Q28: =IF(Q$12<=Access_Period,SUM(Q24:Q27),IF(Q$12="Rehabilitation",SUM(Q24:Q27)*INPUT!$E$17/52,"")) -> 53468.85944 | R28: =IF(R$12<=Access_Period,SUM(R24:R27),IF(R$12="Rehabilitation",SUM(R24:R27)*INPUT!$E$17/52,"")) -> 54805.58093 | S28: =IF(S$12<=Access_Period,SUM(S24:S27),IF(S$12="Rehabilitation",SUM(S24:S27)*INPUT!$E$17/52,"")) -> 56175.72045 | T28: =IF(T$12<=Access_Period,SUM(T24:T27),IF(T$12="Rehabilitation",SUM(T24:T27)*INPUT!$E$17/52,"")) -> 57580.11346 | U28: =IF(U$12<=Access_Period,SUM(U24:U27),IF(U$12="Rehabilitation",SUM(U24:U27)*INPUT!$E$17/52,"")) -> 59019.6163 | V28: =IF(V$12<=Access_Period,SUM(V24:V27),IF(V$12="Rehabilitation",SUM(V24:V27)*INPUT!$E$17/52,"")) -> 60495.10671 | W28: =IF(W$12<=Access_Period,SUM(W24:W27),IF(W$12="Rehabilitation",SUM(W24:W27)*INPUT!$E$17/52,"")) -> 62007.48437 | X28: =IF(X$12<=Access_Period,SUM(X24:X27),IF(X$12="Rehabilitation",SUM(X24:X27)*INPUT!$E$17/52,"")) -> 58010.85891 | Y28: =IF(Y$12<=Access_Period,SUM(Y24:Y27),IF(Y$12="Rehabilitation",SUM(Y24:Y27)*INPUT!$E$17/52,"")) ->  | Z28: =IF(Z$12<=Access_Period,SUM(Z24:Z27),IF(Z$12="Rehabilitation",SUM(Z24:Z27)*INPUT!$E$17/52,"")) ->  | AA28: =IF(AA$12<=Access_Period,SUM(AA24:AA27),IF(AA$12="Rehabilitation",SUM(AA24:AA27)*INPUT!$E$17/52,"")) ->  | AB28: =IF(AB$12<=Access_Period,SUM(AB24:AB27),IF(AB$12="Rehabilitation",SUM(AB24:AB27)*INPUT!$E$17/52,"")) ->  | AC28: =IF(AC$12<=Access_Period,SUM(AC24:AC27),IF(AC$12="Rehabilitation",SUM(AC24:AC27)*INPUT!$E$17/52,"")) ->  | AD28: =IF(AD$12<=Access_Period,SUM(AD24:AD27),IF(AD$12="Rehabilitation",SUM(AD24:AD27)*INPUT!$E$17/52,"")) ->  | AE28: =IF(AE$12<=Access_Period,SUM(AE24:AE27),IF(AE$12="Rehabilitation",SUM(AE24:AE27)*INPUT!$E$17/52,"")) ->  | AF28: =IF(AF$12<=Access_Period,SUM(AF24:AF27),IF(AF$12="Rehabilitation",SUM(AF24:AF27)*INPUT!$E$17/52,"")) ->  | AG28: =IF(AG$12<=Access_Period,SUM(AG24:AG27),IF(AG$12="Rehabilitation",SUM(AG24:AG27)*INPUT!$E$17/52,"")) ->  | AH28: =IF(AH$12<=Access_Period,SUM(AH24:AH27),IF(AH$12="Rehabilitation",SUM(AH24:AH27)*INPUT!$E$17/52,"")) -> 
B30: PART B. Annual Compensation Payments
B31: Beginning of Year | D31: =IF(D11<=Access_Period,D11,"") -> 1 | E31: 2 | F31: 3 | G31: 4 | H31: 5 | I31: 6 | J31: 7 | K31: 8 | L31: 9 | M31: 10 | N31: 11 | O31: 12 | P31: 13 | Q31: 14 | R31: 15 | S31: 16 | T31: 17 | U31: 18 | V31: 19 | W31: 20
B32: Lump-Sum Payment ($Nominal) | D32: =SUM(D33:AH33) -> 755349.0136
B33: PV of Annual Payments ($Nominal) | D33: =IF(D23<=Access_Period,D28,"") -> 105100 | E33: =IF(E23<=Access_Period,E28*(1+Interest_Rate)^-(E23-$D$23),"") -> 31859.17874 | F33: 31551.36059 | G33: 31246.51653 | H33: 37309.95562 | I33: 36949.47296 | J33: 36592.47322 | K33: 36238.92275 | L33: 35888.78823 | M33: 35542.03666 | N33: 35198.63534 | O33: 34858.5519 | P33: 34521.7543 | Q33: 34188.21078 | R33: 33857.8899 | S33: 33530.76053 | T33: 33206.79183 | U33: 32885.95326 | V33: 32568.21458 | W33: 32253.54584
B35: PART C. Benefit Payments
B36: Beginning of Year | D36: =IF(D11<=Access_Period,D11,"") -> 1 | E36: 2 | F36: 3 | G36: 4 | H36: 5 | I36: 6 | J36: 7 | K36: 8 | L36: 9 | M36: 10 | N36: 11 | O36: 12 | P36: 13 | Q36: 14 | R36: 15 | S36: 16 | T36: 17 | U36: 18 | V36: 19 | W36: 20
B37: ="Annual Total in Year "& Production_Year+1 &" Dollar (Nominal)" -> Annual Total in Year 5 Dollar (Nominal) | D37: =IF(AND(D36>Production_Year,D36<=Access_Period),IF(Incentive_Option=1,C18*(C19/100)*(C15/C20),IF(Incentive_Option=2,C18*C19/C20,C18)),"") ->  | H37: 17897.72727 | I37: 18345.17045 | J37: 18803.79972 | K37: 19273.89471 | L37: 19755.74208 | M37: 20249.63563 | N37: 20755.87652 | O37: 21274.77343 | P37: 21806.64277 | Q37: 22351.80884 | R37: 22910.60406 | S37: 23483.36916 | T37: 24070.45339 | U37: 24672.21472 | V37: 25289.02009 | W37: 25921.24559
B40: PART D. Final Rehabilitation Payment | G40: =Incentive_Option -> 1
B41: Rehabilitation | D41: =INDEX(D28:AH28,1,MATCH(B41,D23:AH23,0)) -> 58010.85891

Sheet CONVERSION
B2: CONVERSION CALCULATOR
B3: This Compensation Model calculates compensation based on land area in hectares and land value ($) per hectare. If you have different units for your land area and value, please use the following calculator to convert your figures to hectares.
B4: Select your land and valuation unit: | C4: 1
B7: ="Enter land area in " & CHOOSE(C4,'DO NOT DELETE'!F4,'DO NOT DELETE'!F5,'DO NOT DELETE'!F6,'DO NOT DELETE'!F7) -> Enter land area in Square metre | D7: =CHOOSE(C4,'DO NOT DELETE'!F4,'DO NOT DELETE'!F5,'DO NOT DELETE'!F6,'DO NOT DELETE'!F7) -> Square metre | F7: =IF(ISNUMBER(C7),CHOOSE(C4,'DO NOT DELETE'!G4,'DO NOT DELETE'!G5,'DO NOT DELETE'!G6,'DO NOT DELETE'!G7)*C7,"") ->  | G7: Hectares
B9: ="Enter land value in $ per " & CHOOSE(C4,'DO NOT DELETE'!F4,'DO NOT DELETE'!F5,'DO NOT DELETE'!F6,'DO NOT DELETE'!F7) -> Enter land value in $ per Square metre | D9: ="per " & CHOOSE(C4,'DO NOT DELETE'!F4,'DO NOT DELETE'!F5,'DO NOT DELETE'!F6,'DO NOT DELETE'!F7) -> per Square metre | F9: =IF(ISNUMBER(C9),C9*(1/CHOOSE(C4,'DO NOT DELETE'!G4,'DO NOT DELETE'!G5,'DO NOT DELETE'!G6,'DO NOT DELETE'!G7)),"") ->  | G9: per Hectare

Sheet DO NOT DELETE
A2: Benefit payment | F2: Conversion Chart
A3: Type | B3: Payment based on | G3: Hectare
B4: (1) Royalty payment | C4: (2) Meeting target production | D4: (3) Gas company provided an estimate of annual benefit payment | F4: Square metre | G4: 0.0001
A5: Statutory annual royalty payment | B5: Gas company's statutory annual royalty payment in nominal terms (ie, including inflation) | C5: Amount of money per well a gas company contributes to the incentive fund in the first year of production when meeting a target level of gas production in nominal terms (ie, including inflation) | D5: An estimate of annual benefit payments in the first year of production in nominal terms (ie, including inflation) | F5: Square kilometre | G5: 100
A6: Producing well meeting the target production | B6: % of royalty gas company contributes to incentive fund | C6: Total number of producing wells in licence area that exceed the production target | F6: Acre | G6: 0.4046856422
A7: Estimated annual benefit payment | B7: Total licence area for production | C7: Total number of eligible landholders in licence area | F7: Square Yard | G7: 8.3612736e-05
A10: Inputs for periodic update
A11: 1 | B11: 2 | C11: 3 | D11: 4 | E11: 5 | F11: 6 | G11: 7 | H11: 8 | I11: 9 | J11: 10 | K11: 11 | L11: 12 | M11: 13 | N11: 14 | O11: 15 | P11: 16 | Q11: 17 | R11: 18 | S11: 19 | T11: 20 | U11: 21 | V11: 22 | W11: 23 | X11: 24 | Y11: 25 | Z11: 26 | AA11: 27 | AB11: 28 | AC11: 29 | AD11: 30 | AE11: 31 | AF11: Rehabilitation
B14: Dollar per annum | C14: Dollar per producing wells | D14: Dollar per annum
B15: Percent | C15: Wells
B16: Hectares | C16: Landholders
